Workbook

Sheet Contents
B1: REGULATORY REPORTING STATEMENT
B2: =dms_TradingName -> ActewAGL Distribution
B3: =CONCATENATE("Benchmarking RIN response ",CRY) -> Benchmarking RIN response 2014-15
B5: CONTENTS
B12: 3. ECONOMIC BENCHMARKING

Sheet Business & other details
A1: HIDE THIS COLUMN | C1: =(LOOKUP(dms_Model,dms_Model_List,dms_Worksheet_List)) -> REGULATORY REPORTING STATEMENT | L1: Data in these columns used for data validation and database purposes.
C2: =dms_TradingName -> ActewAGL Distribution | L2: Date last modified:
C3: =CONCATENATE("Benchmarking RIN response ",CRY) -> Benchmarking RIN response 2014-15 | L3: 14 April 2015 | M3: merged cell C46/47
C4: BUSINESS & OTHER DETAILS | L4: 17 April 2015 | M4: adjusted dms_RYE to automate based on dms_Model (NB: EB & CA refer to CRCP_y5)
L5: 14 May 2015 | M5: adapted this cover for use in CA & EB RINs
C7: Instructions
C8: Complete the following business details regulatory template before entering data or values in any other regulatory template. This regulatory template is linked to other cells within the spreadsheet and automatically generates column headings.
C10: SUBMISSION PARTICULARS INPUT SHEETS
C12: Entity details
C14: Trading name | D14: ActewAGL Distribution
C15: ACN / ABN | D15: =INDEX(dms_ABN_List,MATCH(dms_TradingName,dms_TradingName_List)) -> 76670568688
L17: dms_Model_List | M17: dms_Worksheet_List | O17: dms_RYE_List1 | P17: dms_RYE_List2
C18: Business address | D18: Address 1 | F18: 40 Bunda Street | L18: CA | M18: REGULATORY REPORTING STATEMENT | O18: dms_RYE | P18: =CONCATENATE(LEFT(CRY, 2) &IF(CRY>"2009-10",,"") &RIGHT(CRY,2)) -> 2015
E19: Address 2 | L19: CAM/Service change Backcast | M19: REGULATORY REPORTING STATEMENT | O19: dms_RYE | P19: =CONCATENATE(LEFT(CRCP_y5, 2) &IF(CRCP_y5>"2009-10",,"") &RIGHT(CRCP_y5,2)) -> 2016
D20: Suburb | F20: Canberra | L20: CPI | M20: CPI | O20: dms_RYE | P20: =CONCATENATE(LEFT(CRCP_y5, 2) &IF(CRCP_y5>"2009-10",,"") &RIGHT(CRCP_y5,2)) -> 2016
E21: State | F21: =INDEX(dms_State_List,MATCH(dms_TradingName,dms_TradingName_List)) -> ACT | G21: p/code | H21: 2601 | L21: EB | M21: REGULATORY REPORTING STATEMENT | O21: dms_RYE | P21: =CONCATENATE(LEFT(CRY, 2) &IF(CRY>"2009-10",,"") &RIGHT(CRY,2)) -> 2015
L22: PTRM | M22: POST TAX REVENUE MODEL | O22: FRCP | P22: =CONCATENATE(LEFT(FRCP_y5, 2) &IF(FRCP_y1>"2009-10",,"") &RIGHT(FRCP_y5,2)) -> 2021
C23: Postal address | D23: Address 1 | F23: GPO Box 366 | L23: Reset | M23: REGULATORY REPORTING STATEMENT | O23: FRCP | P23: =CONCATENATE(LEFT(CRCP_y5, 2) &IF(CRCP_y5>"2009-10",,"") &RIGHT(CRCP_y5,2)) -> 2016
E24: Address 2 | L24: RFM | M24: ROLL FORWARD MODEL | O24: CRCP | P24: =CONCATENATE(LEFT(CRCP_y5, 2) &IF(CRCP_y1>"2009-10",,"") &RIGHT(CRCP_y5,2)) -> 2016
D25: Suburb | F25: Canberra | L25: WACC | M25: WEIGHTED AVERAGE COST OF CAPITAL | O25: dms_RYE | P25: =CONCATENATE(LEFT(CRCP_y5, 2) &IF(CRCP_y5>"2009-10",,"") &RIGHT(CRCP_y5,2)) -> 2016
E26: State | F26: ACT | G26: p/code | H26: 2601
L28: dms_TradingName_List | M28: dms_ABN_List | N28: dms_State_List | O28: dms_Sector_List | P28: dms_Segment_List | Q28: dms_FormControl | R28: dms_CRCPlength_List | S28: dms_FRCPlength_List | T28: dms_JurisdictionList
C29: Contact name/s | D29: Robert Walker | G29: Stephen Devlin | L29: ActewAGL Distribution | M29: 76670568688 | N29: ACT | O29: Electricity | P29: Distribution | Q29: Revenue cap | R29: 5 | S29: 6 | T29: ACT
C30: Contact phone/s | D30: 02 6248 3847 | G30: 02 6293 5850 | L30: ActewAGL Distribution (Tx Assets) | M30: 76670568688 | N30: ACT | O30: Electricity | P30: Distribution | Q30: Revenue cap | R30: 5 | S30: 5 | T30: ACT
C31: Contact email address/s | D31: Robert.Walker@actewagl.com.au | G31: Stephen.Devlin@actewagl.com.au | L31: AGN | M31: 78551685 | N31: SA | O31: Gas | P31: Distribution | Q31: Revenue cap | R31: 5 | S31: 5 | T31: SA
L32: Ausgrid | M32: 67505337385 | N32: NSW | O32: Electricity | P32: Distribution | Q32: Revenue cap | R32: 5 | S32: 5 | T32: NSW
A33: KEEP VISIBLE FOR RESET, PTRM & RFMS | C33: Regulatory control period details | L33: Ausgrid (Tx Assets) | M33: 67505337385 | N33: NSW | O33: Electricity | P33: Distribution | Q33: Revenue cap | R33: 5 | S33: 5 | T33: NSW
L34: AusNet (D) | M34: 91064651118 | N34: Vic | O34: Electricity | P34: Distribution | Q34: Revenue cap | R34: 5 | S34: 5 | T34: Vic
C35: Forthcoming regulatory control period | D35: =CONCATENATE(IF(dms_RPT="Calendar",CRCP_y5+1,(LEFT(CRCP_y5,4)+1&"-"&IF(MID(CRCP_y5,6,2)<"09","0"&RIGHT(CRCP_y5,1)+1,RIGHT(CRCP_y5,2)+1)))) -> 2016-17 | E35: =CONCATENATE(IF(dms_RPT="Calendar",FRCP_y1+1,(LEFT(FRCP_y1,4)+1&"-"&IF(MID(FRCP_y1,6,2)<"09","0"&RIGHT(FRCP_y1,1)+1,RIGHT(FRCP_y1,2)+1)))) -> 2017-18 | F35: =CONCATENATE(IF(dms_RPT="Calendar",FRCP_y2+1,(LEFT(FRCP_y2,4)+1&"-"&IF(MID(FRCP_y2,6,2)<"09","0"&RIGHT(FRCP_y2,1)+1,RIGHT(FRCP_y2,2)+1)))) -> 2018-19 | G35: =CONCATENATE(IF(dms_RPT="Calendar",FRCP_y3+1,(LEFT(FRCP_y3,4)+1&"-"&IF(MID(FRCP_y3,6,2)<"09","0"&RIGHT(FRCP_y3,1)+1,RIGHT(FRCP_y3,2)+1)))) -> 2019-20 | H35: =CONCATENATE(IF(dms_RPT="Calendar",FRCP_y4+1,(LEFT(FRCP_y4,4)+1&"-"&IF(MID(FRCP_y4,6,2)<"09","0"&RIGHT(FRCP_y4,1)+1,RIGHT(FRCP_y4,2)+1)))) -> 2020-21 | L35: AusNet (T) | M35: 78079798173 | N35: Vic | O35: Electricity | P35: Transmission | Q35: Revenue cap | R35: 5 | S35: 5 | T35: Vic
L36: Australian Distribution Co. | M36: 11222333444 | N36: - | O36: Electricity | P36: Distribution | Q36: Revenue cap | R36: 5 | S36: 5 | T36: -
L37: Australian Transmission Co. | M37: 11222333444 | N37: - | O37: Electricity | P37: Transmission | Q37: Revenue cap | R37: 5 | S37: 5 | T37: -
C38: Current regulatory control period | D38: 2011-12 | E38: =CONCATENATE(IF(dms_RPT="Calendar",CRCP_y1+1,(LEFT(CRCP_y1,4)+1&"-"&IF(MID(CRCP_y1,6,2)<"09","0"&RIGHT(CRCP_y1,1)+1,RIGHT(CRCP_y1,2)+1)))) -> 2012-13 | F38: =CONCATENATE(IF(dms_RPT="Calendar",CRCP_y2+1,(LEFT(CRCP_y2,4)+1&"-"&IF(MID(CRCP_y2,6,2)<"09","0"&RIGHT(CRCP_y2,1)+1,RIGHT(CRCP_y2,2)+1)))) -> 2013-14 | G38: =CONCATENATE(IF(dms_RPT="Calendar",CRCP_y3+1,(LEFT(CRCP_y3,4)+1&"-"&IF(MID(CRCP_y3,6,2)<"09","0"&RIGHT(CRCP_y3,1)+1,RIGHT(CRCP_y3,2)+1)))) -> 2014-15 | H38: =CONCATENATE(IF(dms_RPT="Calendar",CRCP_y4+1,(LEFT(CRCP_y4,4)+1&"-"&IF(MID(CRCP_y4,6,2)<"09","0"&RIGHT(CRCP_y4,1)+1,RIGHT(CRCP_y4,2)+1)))) -> 2015-16 | L38: CitiPower | M38: 76064651056 | N38: Vic | O38: Electricity | P38: Distribution | Q38: Revenue cap | R38: 5 | S38: 5 | T38: Vic
L39: Directlink | M39: 16779340889 | N39: NSW | O39: Electricity | P39: Transmission | Q39: Revenue cap | R39: 10 | S39: 5 | T39: Qld
L40: ElectraNet | M40: 41094482416 | N40: SA | O40: Electricity | P40: Transmission | Q40: Revenue cap | R40: 5 | S40: 5 | T40: SA
C41: Previous regulatory control period | D41: =CONCATENATE(IF(dms_RPT="Calendar",PRCP_y2-1,(LEFT(PRCP_y2,4)-1&"-"&IF(MID(PRCP_y2,3,1)="0","0"&RIGHT(PRCP_y2,2)-1,RIGHT(PRCP_y2,2)-1)))) -> 2006-07 | E41: =CONCATENATE(IF(dms_RPT="Calendar",PRCP_y3-1,(LEFT(PRCP_y3,4)-1&"-"&IF(MID(PRCP_y3,3,1)="0","0"&RIGHT(PRCP_y3,2)-1,RIGHT(PRCP_y3,2)-1)))) -> 2007-08 | F41: =CONCATENATE(IF(dms_RPT="Calendar",PRCP_y4-1,(LEFT(PRCP_y4,4)-1&"-"&IF(MID(PRCP_y4,3,1)="0","0"&RIGHT(PRCP_y4,2)-1,RIGHT(PRCP_y4,2)-1)))) -> 2008-09 | G41: =CONCATENATE(IF(dms_RPT="Calendar",PRCP_y5-1,(LEFT(PRCP_y5,4)-1&"-"&IF(MID(PRCP_y5,3,1)="0","0"&RIGHT(PRCP_y5,2)-1,RIGHT(PRCP_y5,2)-1)))) -> 2009-10 | H41: =CONCATENATE(IF(dms_RPT="Calendar",CRCP_y1-1,(LEFT(CRCP_y1,4)-1&"-"&IF(MID(CRCP_y1,3,1)="0","0"&RIGHT(CRCP_y1,2)-1,RIGHT(CRCP_y1,2)-1)))) -> 2010-11 | L41: Endeavour Energy | M41: 59253130878 | N41: NSW | O41: Electricity | P41: Distribution | Q41: Revenue cap | R41: 5 | S41: 5 | T41: NSW
L42: Energex | M42: 40078849055 | N42: Qld | O42: Electricity | P42: Distribution | Q42: Revenue cap | R42: 5 | S42: 5 | T42: Qld
L43: Ergon Energy | M43: 50087646062 | N43: Qld | O43: Electricity | P43: Distribution | Q43: Revenue cap | R43: 5 | S43: 5 | T43: Qld
A44: KEEP VISIBLE FOR CA & EB ONLY | L44: Essential Energy | M44: 37428185226 | N44: NSW | O44: Electricity | P44: Distribution | Q44: Revenue cap | R44: 5 | S44: 5 | T44: NSW
C45: Current regulatory year | D45: 2014-15 | L45: Jemena Electricity | M45: 82064651083 | N45: Vic | O45: Electricity | P45: Distribution | Q45: Revenue cap | R45: 5 | S45: 5 | T45: Vic
L46: Murraylink | M46: 79181207909 | N46: NSW | O46: Electricity | P46: Transmission | Q46: Revenue cap | R46: 5 | S46: 5 | T46: SA
L47: Powercor Australia | M47: 89064651109 | N47: Vic | O47: Electricity | P47: Distribution | Q47: Revenue cap | R47: 5 | S47: 5 | T47: Vic
L48: Powerlink | M48: 82078849233 | N48: Qld | O48: Electricity | P48: Transmission | Q48: Revenue cap | R48: 5 | S48: 5 | T48: Qld
L49: Qld,SA &ACT Gas Reset | M49: 22222222222 | N49: - | O49: Gas | P49: Distribution | Q49: ? | R49: 5 | S49: 5 | T49: -
C50: Sector | D50: =INDEX(dms_Sector_List,MATCH(dms_TradingName,dms_TradingName_List)) -> Electricity | L50: SA Power Networks | M50: 13332330749 | N50: SA | O50: Electricity | P50: Distribution | Q50: Revenue cap | R50: 5 | S50: 5 | T50: SA
C51: Segment | D51: =INDEX(dms_Segment_List,MATCH(dms_TradingName,dms_TradingName_List)) -> Distribution | L51: TasNetworks (D) | M51: 24167357299 | N51: Tas | O51: Electricity | P51: Distribution | Q51: Revenue cap | R51: 5 | S51: 5 | T51: Tas
C52: Source | D52: Reporting | L52: TasNetworks (T) | M52: 24167357299 | N52: Tas | O52: Electricity | P52: Transmission | Q52: Revenue cap | R52: 5 | S52: 5 | T52: Tas
C53: Regulatory Year Ending | D53: =(LOOKUP(dms_Model,dms_Model_List,dms_RYE_List2)) -> 2015 | L53: TransGrid | M53: 19622755774 | N53: NSW | O53: Electricity | P53: Transmission | Q53: Revenue cap | R53: 5 | S53: 5 | T53: NSW
C54: Reporting Period Type | D54: =IF(LEN(CRCP_y1)>4,"Financial","Calendar") -> Financial | L54: United Energy | M54: 70064651029 | N54: Vic | O54: Electricity | P54: Distribution | Q54: Revenue cap | R54: 5 | S54: 5 | T54: Vic
C55: Model or RIN Type | D55: EB | L55: Victorian DNSP Backcasting | M55: 33333333666 | N55: Vic | O55: Electricity | P55: Distribution | Q55: ? | R55: 5 | S55: 5 | T55: Vic
C56: Security Classification | D56: =IF(dms_DataQuality="Public","Public","Confidential") -> Public | L56: Victorian DNSP Reset | M56: 33333333333 | N56: Vic | O56: Electricity | P56: Distribution | Q56: ? | R56: 5 | S56: 5 | T56: Vic
C57: Data quality (actual, estimate, public, consolidated) | D57: Public
C58: EBSS - First application of scheme in forthcoming period? | D58: No
C59: Amended RIN submission - amendment reason | D59: 20160121 - amended 3.3 Assets RAB
A60: HIDE THESE ROWS | C60: Template - version no. | D60: 1
C61: Dollar $ real (the last month before the FRCP_y1) | D61: =CONCATENATE(IF(dms_RPT="Financial","June ","December "),(dms_RYE)) -> June 2015 | L61: dms_SourceList | M61: dms_FormControl
C62: Form of control | D62: =INDEX(dms_FormControl_List,MATCH(dms_TradingName,dms_TradingName_List)) -> Revenue cap | L62: After appeal | M62: Revenue cap
C63: Length of current reg control period | D63: =INDEX(dms_CRCPlength_List,MATCH(dms_TradingName,dms_TradingName_List)) -> 5 | L63: Draft decision | M63: Revenue yield
C64: Length of forthcoming reg control period | D64: =INDEX(dms_FRCPlength_List,MATCH(dms_TradingName,dms_TradingName_List)) -> 6 | L64: Final decision | M64: Weighted average price cap
C65: RIN response - version no. | D65: 1 | L65: Pass through decision
C66: Jurisdiction | D66: =INDEX(dms_JurisdictionList,MATCH(dms_TradingName,dms_TradingName_List)) -> ACT | L66: PTRM annual update
L67: PTRM interim update 1
L68: PTRM interim update 2
L69: PTRM interim update 3
L70: PTRM interim update 4
L71: Regulatory proposal
L72: Reporting
L73: Revised regulatory proposal
L74: RFM annual update
L75: WACC annual update
L79: Notes
L80: RFM - Base year is usually CRCP_y1 | M80: EG. Victorian 2016-20 - base year = 2011
L81: RFM - Form of Control Field is not relevant
L82: PTRM - capture base year input by NSP | M82: ='[Published version - PTRM - TNSP - version 3 - January 2015 - Appendix A.xlsm]PTRM input'!Q7

Sheet 3.1 Revenue
C1: REGULATORY REPORTING STATEMENT
C2: =dms_TradingName -> ActewAGL Distribution
C3: =CONCATENATE("Benchmarking RIN response ",CRY) -> Benchmarking RIN response 2014-15
C4: 3.1 REVENUE
E8: Standard control services | F8: Alternative control services
E9: Actual ($0's)
E10: =CRY -> 2014-15 | F10: =CRY -> 2014-15
C12: TABLE 3.1.1 - REVENUE GROUPING BY CHARGEABLE QUANTITY
A13: ED_REV311_00001 | B13: DREV0101 | C13: Revenue from Fixed Customer Charges | E13: ='[1]3.1 Revenue'!E13+'[2]3.1 Revenue'!E13 -> 18011603.35 | F13: ='[1]3.1 Revenue'!F13+'[2]3.1 Revenue'!F13 -> 0
A14: ED_REV311_00002 | B14: DREV0102 | C14: Revenue from Energy Delivery charges where time of use is not a determinant | E14: ='[1]3.1 Revenue'!E14+'[2]3.1 Revenue'!E14 -> 104535207 | F14: ='[1]3.1 Revenue'!F14+'[2]3.1 Revenue'!F14 -> 0
A15: ED_REV311_00003 | B15: DREV0103 | C15: Revenue from On–Peak Energy Delivery charges | E15: ='[1]3.1 Revenue'!E15+'[2]3.1 Revenue'!E15 -> 40581618.84 | F15: ='[1]3.1 Revenue'!F15+'[2]3.1 Revenue'!F15 -> 0
A16: ED_REV311_00004 | B16: DREV0104 | C16: Revenue from Shoulder period Energy Delivery Charges | E16: ='[1]3.1 Revenue'!E16+'[2]3.1 Revenue'!E16 -> 12333719.79 | F16: ='[1]3.1 Revenue'!F16+'[2]3.1 Revenue'!F16 -> 0
A17: ED_REV311_00005 | B17: DREV0105 | C17: Revenue from Off–Peak Energy Delivery charges | E17: ='[1]3.1 Revenue'!E17+'[2]3.1 Revenue'!E17 -> 15892749.05 | F17: ='[1]3.1 Revenue'!F17+'[2]3.1 Revenue'!F17 -> 0
A18: ED_REV311_00006 | B18: DREV0106 | C18: Revenue from controlled load customer charges | E18: ='[1]3.1 Revenue'!E18+'[2]3.1 Revenue'!E18 -> 2537717.3 | F18: ='[1]3.1 Revenue'!F18+'[2]3.1 Revenue'!F18 -> 0
A19: ED_REV311_00007 | B19: DREV0107 | C19: Revenue from unmetered supplies | E19: ='[1]3.1 Revenue'!E19+'[2]3.1 Revenue'!E19 -> 170611.25 | F19: ='[1]3.1 Revenue'!F19+'[2]3.1 Revenue'!F19 -> 0
A20: ED_REV311_00008 | B20: DREV0108 | C20: Revenue from Contracted Maximum Demand charges | E20: ='[1]3.1 Revenue'!E20+'[2]3.1 Revenue'!E20 -> 0 | F20: ='[1]3.1 Revenue'!F20+'[2]3.1 Revenue'!F20 -> 0
A21: ED_REV311_00009 | B21: DREV0109 | C21: Revenue from Measured Maximum Demand charges | E21: ='[1]3.1 Revenue'!E21+'[2]3.1 Revenue'!E21 -> 51568347.71 | F21: ='[1]3.1 Revenue'!F21+'[2]3.1 Revenue'!F21 -> 0
A22: ED_REV311_00010 | B22: DREV0110 | C22: Revenue from metering charges | E22: ='[1]3.1 Revenue'!E22+'[2]3.1 Revenue'!E22 -> 0 | F22: ='[1]3.1 Revenue'!F22+'[2]3.1 Revenue'!F22 -> 9097555.58
A23: ED_REV311_00011 | B23: DREV0111 | C23: Revenue from connection charges | E23: ='[1]3.1 Revenue'!E23+'[2]3.1 Revenue'!E23 -> 0 | F23: ='[1]3.1 Revenue'!F23+'[2]3.1 Revenue'!F23 -> 2720614.05
A24: ED_REV311_00012 | B24: DREV0112 | C24: Revenue from public lighting charges | E24: ='[1]3.1 Revenue'!E24+'[2]3.1 Revenue'!E24 -> 0 | F24: ='[1]3.1 Revenue'!F24+'[2]3.1 Revenue'!F24 -> 0
A25: ED_REV311_00013 | B25: DREV0113 | C25: Revenue from other Sources | E25: ='[1]3.1 Revenue'!E25+'[2]3.1 Revenue'!E25 -> 35381599.01 | F25: ='[1]3.1 Revenue'!F25+'[2]3.1 Revenue'!F25 -> 2319940.98
B26: DREV01 | C26: Total revenue by chargeable quantity | D26: $0's | E26: =SUM(E13:E25) -> 281013173.3 | F26: =SUM(F13:F25) -> 14138110.61
C28: TABLE 3.1.2 REVENUE GROUPING BY CUSTOMER TYPE OR CLASS
A29: ED_REV312_00001 | B29: DREV0201 | C29: Revenue from residential Customers | E29: ='[1]3.1 Revenue'!E29+'[2]3.1 Revenue'!E29 -> 96417301.33 | F29: ='[1]3.1 Revenue'!F29+'[2]3.1 Revenue'!F29 -> 0
A30: ED_REV312_00002 | B30: DREV0202 | C30: Revenue from Non residential customers not on demand tariffs | E30: ='[1]3.1 Revenue'!E30+'[2]3.1 Revenue'!E30 -> 49949152.31 | F30: ='[1]3.1 Revenue'!F30+'[2]3.1 Revenue'!F30 -> 0
A31: ED_REV312_00003 | B31: DREV0203 | C31: Revenue from Non-residential low voltage demand tariff customers | E31: ='[1]3.1 Revenue'!E31+'[2]3.1 Revenue'!E31 -> 76888308.95 | F31: ='[1]3.1 Revenue'!F31+'[2]3.1 Revenue'!F31 -> 0
A32: ED_REV312_00004 | B32: DREV0204 | C32: Revenue from Non-residential high voltage demand tariff customers | E32: ='[1]3.1 Revenue'!E32+'[2]3.1 Revenue'!E32 -> 22203102.56 | F32: ='[1]3.1 Revenue'!F32+'[2]3.1 Revenue'!F32 -> 0
A33: ED_REV312_00005 | B33: DREV0205 | C33: Revenue from unmetered supplies | E33: ='[1]3.1 Revenue'!E33+'[2]3.1 Revenue'!E33 -> 173709.19 | F33: ='[1]3.1 Revenue'!F33+'[2]3.1 Revenue'!F33 -> 0
A34: ED_REV312_00006 | B34: DREV0206 | C34: Revenue from Other Customers | E34: ='[1]3.1 Revenue'!E34+'[2]3.1 Revenue'!E34 -> 35381599.01 | F34: ='[1]3.1 Revenue'!F34+'[2]3.1 Revenue'!F34 -> 14138110.61
B35: DREV02 | C35: Total revenue by customer class | D35: $0's | E35: =SUM(E29:E34) -> 281013173.3 | F35: =SUM(F29:F34) -> 14138110.61
C37: TABLE 3.1.3 REVENUE (penalties) ALLOWED (deducted) THROUGH INCENTIVE SCHEMES
A38: ED_REV313_00001 | B38: DREV0301 | C38: EBSS | E38: 0 | F38: 0
A39: ED_REV313_00002 | B39: DREV0302 | C39: STPIS | E39: 0 | F39: 0
A40: ED_REV313_00003 | B40: DREV0303 | C40: F-Factor | E40: 0 | F40: 0
A41: ED_REV313_00004 | B41: DREV0304 | C41: S-Factor True up | E41: 0 | F41: 0
A42: ED_REV313_00005 | B42: DREV0305 | C42: Other | E42: 0 | F42: 0
B43: DREV03 | C43: Total revenue of incentive schemes | D43: $0's | E43: =SUM(E38:E42) -> 0 | F43: =SUM(F38:F42) -> 0

Sheet 3.2 Operating expenditure
C1: REGULATORY REPORTING STATEMENT | F1: Worksheet navigation
C2: =dms_TradingName -> ActewAGL Distribution
C3: =CONCATENATE("Benchmarking RIN response ",CRY) -> Benchmarking RIN response 2014-15
C4: 3.2 OPERATING EXPENDITURE
C7: Instructions
C8: =CONCATENATE(dms_TradingName, " must fill in opex in table 3.2.1 for opex categories reported in response to its annual reporting RIN.") -> ActewAGL Distribution must fill in opex in table 3.2.1 for opex categories reported in response to its annual reporting RIN.
E11: Standard control services | F11: Alternative control services
E12: Actual ($0's)
A13: ED_OPX3211 | E13: =CRY -> 2014-15 | F13: =CRY -> 2014-15
C15: TABLE 3.2.1 - OPEX CATEGORIES
C17: Table 3.2.1.1 Current opex categories and cost allocations
A18: ED_OPX3211_00001 | B18: DOPEX0101 | C18: VEGETATION MANAGEMENT | E18: ='[1]3.2 Operating expenditure'!E18+'[2]3.2 Operating expenditure'!E18 -> 2765697.499 | F18: ='[1]3.2 Operating expenditure'!F18+'[2]3.2 Operating expenditure'!F18 -> 0
A19: ED_OPX3211_00002 | B19: DOPEX0102 | C19: ROUTINE MAINTENANCE | E19: ='[1]3.2 Operating expenditure'!E19+'[2]3.2 Operating expenditure'!E19 -> 1962311.123 | F19: ='[1]3.2 Operating expenditure'!F19+'[2]3.2 Operating expenditure'!F19 -> 225.77
A20: ED_OPX3211_00003 | B20: DOPEX0103 | C20: NON-ROUTINE MAINTENANCE | E20: ='[1]3.2 Operating expenditure'!E20+'[2]3.2 Operating expenditure'!E20 -> 5876754.897 | F20: ='[1]3.2 Operating expenditure'!F20+'[2]3.2 Operating expenditure'!F20 -> 60075.56
A21: ED_OPX3211_00004 | B21: DOPEX0104 | C21: CONDITION MONITORING | E21: ='[1]3.2 Operating expenditure'!E21+'[2]3.2 Operating expenditure'!E21 -> 4626759.195 | F21: ='[1]3.2 Operating expenditure'!F21+'[2]3.2 Operating expenditure'!F21 -> 405920.64
A22: ED_OPX3211_00005 | B22: DOPEX0105 | C22: EMERGENCY RESPONSE | E22: ='[1]3.2 Operating expenditure'!E22+'[2]3.2 Operating expenditure'!E22 -> 0 | F22: ='[1]3.2 Operating expenditure'!F22+'[2]3.2 Operating expenditure'!F22 -> 0
A23: ED_OPX3211_00006 | B23: DOPEX0106 | C23: NON NETWORK IT AND COMMUNICATIONS | E23: ='[1]3.2 Operating expenditure'!E23+'[2]3.2 Operating expenditure'!E23 -> 7674266.131 | F23: ='[1]3.2 Operating expenditure'!F23+'[2]3.2 Operating expenditure'!F23 -> 0
A24: ED_OPX3211_00007 | B24: DOPEX0107 | C24: NETWORK MANAGEMENT | E24: ='[1]3.2 Operating expenditure'!E24+'[2]3.2 Operating expenditure'!E24 -> 0 | F24: ='[1]3.2 Operating expenditure'!F24+'[2]3.2 Operating expenditure'!F24 -> 0
A25: ED_OPX3211_00008 | B25: DOPEX0108 | C25: NETWORK PLANNING | E25: ='[1]3.2 Operating expenditure'!E25+'[2]3.2 Operating expenditure'!E25 -> 3635750.022 | F25: ='[1]3.2 Operating expenditure'!F25+'[2]3.2 Operating expenditure'!F25 -> 152918.83
A26: ED_OPX3211_00009 | B26: DOPEX0109 | C26: NETWORK CONTROL AND OPERATIONAL SWITCHING | E26: ='[1]3.2 Operating expenditure'!E26+'[2]3.2 Operating expenditure'!E26 -> 5395908.615 | F26: ='[1]3.2 Operating expenditure'!F26+'[2]3.2 Operating expenditure'!F26 -> 0
A27: ED_OPX3211_00010 | B27: DOPEX0110 | C27: QUALITY AND STANDARD FUNCTIONS | E27: ='[1]3.2 Operating expenditure'!E27+'[2]3.2 Operating expenditure'!E27 -> 1607996.063 | F27: ='[1]3.2 Operating expenditure'!F27+'[2]3.2 Operating expenditure'!F27 -> 0
A28: ED_OPX3211_00011 | B28: DOPEX0111 | C28: PROJECT GOVERNANCE AND RELATED FUNCTIONS | E28: ='[1]3.2 Operating expenditure'!E28+'[2]3.2 Operating expenditure'!E28 -> 0 | F28: ='[1]3.2 Operating expenditure'!F28+'[2]3.2 Operating expenditure'!F28 -> 0
A29: ED_OPX3211_00012 | B29: DOPEX0112 | C29: REGULATORY OPERATIONS | E29: ='[1]3.2 Operating expenditure'!E29+'[2]3.2 Operating expenditure'!E29 -> 6663555.081 | F29: ='[1]3.2 Operating expenditure'!F29+'[2]3.2 Operating expenditure'!F29 -> 0
A30: ED_OPX3211_00013 | B30: DOPEX0113 | C30: CUSTOMER SERVICE | E30: ='[1]3.2 Operating expenditure'!E30+'[2]3.2 Operating expenditure'!E30 -> 5792857.055 | F30: ='[1]3.2 Operating expenditure'!F30+'[2]3.2 Operating expenditure'!F30 -> 0
A31: ED_OPX3211_00014 | B31: DOPEX0114 | C31: ADVERTISING & MARKETING | E31: ='[1]3.2 Operating expenditure'!E31+'[2]3.2 Operating expenditure'!E31 -> 1003205.96 | F31: ='[1]3.2 Operating expenditure'!F31+'[2]3.2 Operating expenditure'!F31 -> 0
A32: ED_OPX3211_00015 | B32: DOPEX0115 | C32: BILLING & REVENUE OPERATIONS | E32: ='[1]3.2 Operating expenditure'!E32+'[2]3.2 Operating expenditure'!E32 -> 1157554.911 | F32: ='[1]3.2 Operating expenditure'!F32+'[2]3.2 Operating expenditure'!F32 -> 0
A33: ED_OPX3211_00016 | B33: DOPEX0116 | C33: TRAINING APPRENTICESHIP & GRADUATE ENGINEER | E33: ='[1]3.2 Operating expenditure'!E33+'[2]3.2 Operating expenditure'!E33 -> 2050486.958 | F33: ='[1]3.2 Operating expenditure'!F33+'[2]3.2 Operating expenditure'!F33 -> 0
A34: ED_OPX3211_00017 | B34: DOPEX0117 | C34: BUSINESS OVERHEADS | E34: ='[1]3.2 Operating expenditure'!E34+'[2]3.2 Operating expenditure'!E34 -> 4538041.25 | F34: ='[1]3.2 Operating expenditure'!F34+'[2]3.2 Operating expenditure'!F34 -> 0
A35: ED_OPX3211_00018 | B35: DOPEX0118 | C35: RECOVERIES | E35: ='[1]3.2 Operating expenditure'!E35+'[2]3.2 Operating expenditure'!E35 -> 2143990.1 | F35: ='[1]3.2 Operating expenditure'!F35+'[2]3.2 Operating expenditure'!F35 -> 0
A36: ED_OPX3211_00019 | B36: DOPEX0119 | C36: METER READING | E36: ='[1]3.2 Operating expenditure'!E36+'[2]3.2 Operating expenditure'!E36 -> 0 | F36: ='[1]3.2 Operating expenditure'!F36+'[2]3.2 Operating expenditure'!F36 -> 1862128.26
A37: ED_OPX3211_00020 | B37: DOPEX0120 | C37: METER DATA SERVICES | E37: ='[1]3.2 Operating expenditure'!E37+'[2]3.2 Operating expenditure'!E37 -> 0 | F37: ='[1]3.2 Operating expenditure'!F37+'[2]3.2 Operating expenditure'!F37 -> 983359.6
A38: ED_OPX3211_00021 | B38: DOPEX0121 | C38: ANCILLARY SERVICES - QUOTED SERVICES | E38: ='[1]3.2 Operating expenditure'!E38+'[2]3.2 Operating expenditure'!E38 -> 0 | F38: ='[1]3.2 Operating expenditure'!F38+'[2]3.2 Operating expenditure'!F38 -> 1200394.95
A39: ED_OPX3211_00022 | B39: DOPEX0122 | C39: ANCILLARY SERVICES - FEE BASED SERVICES | E39: ='[1]3.2 Operating expenditure'!E39+'[2]3.2 Operating expenditure'!E39 -> 0 | F39: ='[1]3.2 Operating expenditure'!F39+'[2]3.2 Operating expenditure'!F39 -> 3222082.7
A40: ED_OPX3211_00023 | B40: DOPEX0123 | C40: Restructuring Expenditure | E40: ='[1]3.2 Operating expenditure'!E40+'[2]3.2 Operating expenditure'!E40 -> 16684707.82 | F40: ='[1]3.2 Operating expenditure'!F40+'[2]3.2 Operating expenditure'!F40 -> 0
A41: ED_OPX3211_00024 | B41: DOPEX0124
A42: ED_OPX3211_00025 | B42: DOPEX0125
A43: ED_OPX3211_00026 | B43: DOPEX0126
A44: ED_OPX3211_00027 | B44: DOPEX0127
A45: ED_OPX3211_00028 | B45: DOPEX0128
A46: ED_OPX3211_00029 | B46: DOPEX0129
A47: ED_OPX3211_00030 | B47: DOPEX0130
A48: ED_OPX3211_00031 | B48: DOPEX0131
A49: ED_OPX3211_00032 | B49: DOPEX0132
A50: ED_OPX3211_00033 | B50: DOPEX0133
A51: ED_OPX3211_00034 | B51: DOPEX0134
A52: ED_OPX3211_00035 | B52: DOPEX0135
A53: ED_OPX3211_00036 | B53: DOPEX0136
A54: ED_OPX3211_00037 | B54: DOPEX0137
A55: ED_OPX3211_00038 | B55: DOPEX0138
A56: ED_OPX3211_00039 | B56: DOPEX0139
A57: ED_OPX3211_00040 | B57: DOPEX0140
A58: ED_OPX3211_00041 | B58: DOPEX0141
A59: ED_OPX3211_00042 | B59: DOPEX0142
B60: DOPEX01 | C60: Total opex | D60: ($0's) | E60: =SUM(E18:E59) -> 73579842.68 | F60: =SUM(F18:F59) -> 7887106.31
A63: ED_OPX3212A | C63: Table 3.2.1.2A - Historical opex categories and cost allocations | E63: =CRY -> 2014-15 | F63: =CRY -> 2014-15
A64: ED_OPX3212A_00001 | B64: DOPEX0101A | C64: Network control | E64: ='[1]3.2 Operating expenditure'!E64+'[2]3.2 Operating expenditure'!E64 -> 5395908.615 | F64: ='[1]3.2 Operating expenditure'!F64+'[2]3.2 Operating expenditure'!F64 -> 0
A65: ED_OPX3212A_00002 | B65: DOPEX0102A | C65: IT planning and operations | E65: ='[1]3.2 Operating expenditure'!E65+'[2]3.2 Operating expenditure'!E65 -> 7674266.131 | F65: ='[1]3.2 Operating expenditure'!F65+'[2]3.2 Operating expenditure'!F65 -> 0
A66: ED_OPX3212A_00003 | B66: DOPEX0103A | C66: Network systems operations | E66: ='[1]3.2 Operating expenditure'!E66+'[2]3.2 Operating expenditure'!E66 -> 5792857.055 | F66: ='[1]3.2 Operating expenditure'!F66+'[2]3.2 Operating expenditure'!F66 -> 0
A67: ED_OPX3212A_00004 | B67: DOPEX0104A | C67: Quality, environmental and safety systems | E67: ='[1]3.2 Operating expenditure'!E67+'[2]3.2 Operating expenditure'!E67 -> 1416305.39 | F67: ='[1]3.2 Operating expenditure'!F67+'[2]3.2 Operating expenditure'!F67 -> 0
A68: ED_OPX3212A_00005 | B68: DOPEX0105A | C68: Executive & financial management | E68: ='[1]3.2 Operating expenditure'!E68+'[2]3.2 Operating expenditure'!E68 -> 1612770.29 | F68: ='[1]3.2 Operating expenditure'!F68+'[2]3.2 Operating expenditure'!F68 -> 0
A69: ED_OPX3212A_00006 | B69: DOPEX0106A | C69: Other network operating costs (itemise in table 3 below) | E69: ='[1]3.2 Operating expenditure'!E69+'[2]3.2 Operating expenditure'!E69 -> 10275327.17 | F69: ='[1]3.2 Operating expenditure'!F69+'[2]3.2 Operating expenditure'!F69 -> 0
A70: ED_OPX3212A_00007 | B70: DOPEX0107A | C70: Non-network alternatives (demand management) | E70: ='[1]3.2 Operating expenditure'!E70+'[2]3.2 Operating expenditure'!E70 -> 0 | F70: ='[1]3.2 Operating expenditure'!F70+'[2]3.2 Operating expenditure'!F70 -> 0
A71: ED_OPX3212A_00008 | B71: DOPEX0108A | C71: Advertising & marketing | E71: ='[1]3.2 Operating expenditure'!E71+'[2]3.2 Operating expenditure'!E71 -> 1003205.96 | F71: ='[1]3.2 Operating expenditure'!F71+'[2]3.2 Operating expenditure'!F71 -> 0
A72: ED_OPX3212A_00009 | B72: DOPEX0109A | C72: Corporate management fee | E72: ='[1]3.2 Operating expenditure'!E72+'[2]3.2 Operating expenditure'!E72 -> 0 | F72: ='[1]3.2 Operating expenditure'!F72+'[2]3.2 Operating expenditure'!F72 -> 0
A73: ED_OPX3212A_00010 | B73: DOPEX0110A | C73: Business services provided by ActewAGL retail | E73: ='[1]3.2 Operating expenditure'!E73+'[2]3.2 Operating expenditure'!E73 -> 0 | F73: ='[1]3.2 Operating expenditure'!F73+'[2]3.2 Operating expenditure'!F73 -> 0
A74: ED_OPX3212A_00011 | B74: DOPEX0111A | C74: Apprentice training program | E74: ='[1]3.2 Operating expenditure'!E74+'[2]3.2 Operating expenditure'!E74 -> 2050486.958 | F74: ='[1]3.2 Operating expenditure'!F74+'[2]3.2 Operating expenditure'!F74 -> 0
A75: ED_OPX3212A_00012 | B75: DOPEX0112A | C75: Business overheads | E75: ='[1]3.2 Operating expenditure'!E75+'[2]3.2 Operating expenditure'!E75 -> 20337663.49 | F75: ='[1]3.2 Operating expenditure'!F75+'[2]3.2 Operating expenditure'!F75 -> 0
A76: ED_OPX3212A_00013 | B76: DOPEX0113A | C76: Regulated miscellaneous charges | E76: ='[1]3.2 Operating expenditure'!E76+'[2]3.2 Operating expenditure'!E76 -> 0 | F76: ='[1]3.2 Operating expenditure'!F76+'[2]3.2 Operating expenditure'!F76 -> 3222082.7
A77: ED_OPX3212A_00014 | B77: DOPEX0114A | C77: External business expenditure | E77: ='[1]3.2 Operating expenditure'!E77+'[2]3.2 Operating expenditure'!E77 -> 0 | F77: ='[1]3.2 Operating expenditure'!F77+'[2]3.2 Operating expenditure'!F77 -> 1200394.95
A78: ED_OPX3212A_00015 | B78: DOPEX0115A | C78: Zone substation Planned | E78: ='[1]3.2 Operating expenditure'!E78+'[2]3.2 Operating expenditure'!E78 -> 3995829.056 | F78: ='[1]3.2 Operating expenditure'!F78+'[2]3.2 Operating expenditure'!F78 -> 0
A79: ED_OPX3212A_00016 | B79: DOPEX0116A | C79: Zone substation Reactive | E79: ='[1]3.2 Operating expenditure'!E79+'[2]3.2 Operating expenditure'!E79 -> 342719.8516 | F79: ='[1]3.2 Operating expenditure'!F79+'[2]3.2 Operating expenditure'!F79 -> 0
A80: ED_OPX3212A_00017 | B80: DOPEX0117A | C80: Transmission Planned | E80: ='[1]3.2 Operating expenditure'!E80+'[2]3.2 Operating expenditure'!E80 -> 85365.7428 | F80: ='[1]3.2 Operating expenditure'!F80+'[2]3.2 Operating expenditure'!F80 -> 0
A81: ED_OPX3212A_00018 | B81: DOPEX0118A | C81: Transmission Reactive | E81: ='[1]3.2 Operating expenditure'!E81+'[2]3.2 Operating expenditure'!E81 -> 20265.57951 | F81: ='[1]3.2 Operating expenditure'!F81+'[2]3.2 Operating expenditure'!F81 -> 0
A82: ED_OPX3212A_00019 | B82: DOPEX0119A | C82: Underground distribution Planned | E82: ='[1]3.2 Operating expenditure'!E82+'[2]3.2 Operating expenditure'!E82 -> 0 | F82: ='[1]3.2 Operating expenditure'!F82+'[2]3.2 Operating expenditure'!F82 -> 0
A83: ED_OPX3212A_00020 | B83: DOPEX0120A | C83: Underground distribution Reactive | E83: ='[1]3.2 Operating expenditure'!E83+'[2]3.2 Operating expenditure'!E83 -> 0 | F83: ='[1]3.2 Operating expenditure'!F83+'[2]3.2 Operating expenditure'!F83 -> 0
A84: ED_OPX3212A_00021 | B84: DOPEX0121A | C84: Overhead distribution Planned | E84: ='[1]3.2 Operating expenditure'!E84+'[2]3.2 Operating expenditure'!E84 -> 7688963.875 | F84: ='[1]3.2 Operating expenditure'!F84+'[2]3.2 Operating expenditure'!F84 -> 0
A85: ED_OPX3212A_00022 | B85: DOPEX0122A | C85: Overhead distribution Reactive | E85: ='[1]3.2 Operating expenditure'!E85+'[2]3.2 Operating expenditure'!E85 -> 5887907.514 | F85: ='[1]3.2 Operating expenditure'!F85+'[2]3.2 Operating expenditure'!F85 -> 0
A86: ED_OPX3212A_00023 | B86: DOPEX0123A | C86: Distribution station Planned | E86: ='[1]3.2 Operating expenditure'!E86+'[2]3.2 Operating expenditure'!E86 -> 0 | F86: ='[1]3.2 Operating expenditure'!F86+'[2]3.2 Operating expenditure'!F86 -> 0
A87: ED_OPX3212A_00024 | B87: DOPEX0124A | C87: Distribution station Reactive | E87: ='[1]3.2 Operating expenditure'!E87+'[2]3.2 Operating expenditure'!E87 -> 0 | F87: ='[1]3.2 Operating expenditure'!F87+'[2]3.2 Operating expenditure'!F87 -> 0
A88: ED_OPX3212A_00025 | B88: DOPEX0125A | C88: Meter reading expenditures | E88: ='[1]3.2 Operating expenditure'!E88+'[2]3.2 Operating expenditure'!E88 -> 0 | F88: ='[1]3.2 Operating expenditure'!F88+'[2]3.2 Operating expenditure'!F88 -> 2845487.86
A89: ED_OPX3212A_00026 | B89: DOPEX0126A | C89: Maintenance and repair of meters | E89: ='[1]3.2 Operating expenditure'!E89+'[2]3.2 Operating expenditure'!E89 -> 0 | F89: ='[1]3.2 Operating expenditure'!F89+'[2]3.2 Operating expenditure'!F89 -> 619140.8
A90: ED_OPX3212A_00027 | B90: DOPEX0127A
A91: ED_OPX3212A_00028 | B91: DOPEX0128A
A92: ED_OPX3212A_00029 | B92: DOPEX0129A
A93: ED_OPX3212A_00030 | B93: DOPEX0130A
A94: ED_OPX3212A_00031 | B94: DOPEX0131A
A95: ED_OPX3212A_00032 | B95: DOPEX0132A
A96: ED_OPX3212A_00033 | B96: DOPEX0133A
A97: ED_OPX3212A_00034 | B97: DOPEX0134A
A98: ED_OPX3212A_00035 | B98: DOPEX0135A
A99: ED_OPX3212A_00036 | B99: DOPEX0136A
A100: ED_OPX3212A_00037 | B100: DOPEX0137A
A101: ED_OPX3212A_00038 | B101: DOPEX0138A
A102: ED_OPX3212A_00039 | B102: DOPEX0139A
A103: ED_OPX3212A_00040 | B103: DOPEX0140A
A104: ED_OPX3212A_00041 | B104: DOPEX0141A
A105: ED_OPX3212A_00042 | B105: DOPEX0142A
B106: DOPEX01A | C106: Total opex | D106: ($0's) | E106: =SUM(E64:E105) -> 73579842.68 | F106: =SUM(F64:F105) -> 7887106.31
A108: ED_OPX3212B | C108: Table 3.2.1.2B - Historical opex categories and cost allocations | E108: =CRY -> 2014-15 | F108: =CRY -> 2014-15
A109: ED_OPX3212B_00001 | B109: DOPEX0101B
A110: ED_OPX3212B_00002 | B110: DOPEX0102B
A111: ED_OPX3212B_00003 | B111: DOPEX0103B
A112: ED_OPX3212B_00004 | B112: DOPEX0104B
A113: ED_OPX3212B_00005 | B113: DOPEX0105B
A114: ED_OPX3212B_00006 | B114: DOPEX0106B
A115: ED_OPX3212B_00007 | B115: DOPEX0107B
A116: ED_OPX3212B_00008 | B116: DOPEX0108B
A117: ED_OPX3212B_00009 | B117: DOPEX0109B
A118: ED_OPX3212B_00010 | B118: DOPEX0110B
A119: ED_OPX3212B_00011 | B119: DOPEX0111B
A120: ED_OPX3212B_00012 | B120: DOPEX0112B
A121: ED_OPX3212B_00013 | B121: DOPEX0113B
A122: ED_OPX3212B_00014 | B122: DOPEX0114B
A123: ED_OPX3212B_00015 | B123: DOPEX0115B
A124: ED_OPX3212B_00016 | B124: DOPEX0116B
A125: ED_OPX3212B_00017 | B125: DOPEX0117B
A126: ED_OPX3212B_00018 | B126: DOPEX0118B
A127: ED_OPX3212B_00019 | B127: DOPEX0119B
A128: ED_OPX3212B_00020 | B128: DOPEX0120B
A129: ED_OPX3212B_00021 | B129: DOPEX0121B
A130: ED_OPX3212B_00022 | B130: DOPEX0122B
A131: ED_OPX3212B_00023 | B131: DOPEX0123B
A132: ED_OPX3212B_00024 | B132: DOPEX0124B
A133: ED_OPX3212B_00025 | B133: DOPEX0125B
A134: ED_OPX3212B_00026 | B134: DOPEX0126B
A135: ED_OPX3212B_00027 | B135: DOPEX0127B
A136: ED_OPX3212B_00028 | B136: DOPEX0128B
A137: ED_OPX3212B_00029 | B137: DOPEX0129B
A138: ED_OPX3212B_00030 | B138: DOPEX0130B
A139: ED_OPX3212B_00031 | B139: DOPEX0131B
A140: ED_OPX3212B_00032 | B140: DOPEX0132B
A141: ED_OPX3212B_00033 | B141: DOPEX0133B
A142: ED_OPX3212B_00034 | B142: DOPEX0134B
A143: ED_OPX3212B_00035 | B143: DOPEX0135B
A144: ED_OPX3212B_00036 | B144: DOPEX0136B
A145: ED_OPX3212B_00037 | B145: DOPEX0137B
A146: ED_OPX3212B_00038 | B146: DOPEX0138B
A147: ED_OPX3212B_00039 | B147: DOPEX0139B
A148: ED_OPX3212B_00040 | B148: DOPEX0140B
A149: ED_OPX3212B_00041 | B149: DOPEX0141B
A150: ED_OPX3212B_00042 | B150: DOPEX0142B
B151: DOPEX01B | C151: Total opex | D151: ($0's) | E151: =SUM(E109:E150) -> 0 | F151: =SUM(F109:F150) -> 0
A153: ED_OPX3212C | C153: Table 3.2.1.2C - Historical opex categories and cost allocations | E153: =CRY -> 2014-15 | F153: =CRY -> 2014-15
A154: ED_OPX3212C_00001 | B154: DOPEX0101C
A155: ED_OPX3212C_00002 | B155: DOPEX0102C
A156: ED_OPX3212C_00003 | B156: DOPEX0103C
A157: ED_OPX3212C_00004 | B157: DOPEX0104C
A158: ED_OPX3212C_00005 | B158: DOPEX0105C
A159: ED_OPX3212C_00006 | B159: DOPEX0106C
A160: ED_OPX3212C_00007 | B160: DOPEX0107C
A161: ED_OPX3212C_00008 | B161: DOPEX0108C
A162: ED_OPX3212C_00009 | B162: DOPEX0109C
A163: ED_OPX3212C_00010 | B163: DOPEX0110C
A164: ED_OPX3212C_00011 | B164: DOPEX0111C
A165: ED_OPX3212C_00012 | B165: DOPEX0112C
A166: ED_OPX3212C_00013 | B166: DOPEX0113C
A167: ED_OPX3212C_00014 | B167: DOPEX0114C
A168: ED_OPX3212C_00015 | B168: DOPEX0115C
A169: ED_OPX3212C_00016 | B169: DOPEX0116C
A170: ED_OPX3212C_00017 | B170: DOPEX0117C
A171: ED_OPX3212C_00018 | B171: DOPEX0118C
A172: ED_OPX3212C_00019 | B172: DOPEX0119C
A173: ED_OPX3212C_00020 | B173: DOPEX0120C
A174: ED_OPX3212C_00021 | B174: DOPEX0121C
A175: ED_OPX3212C_00022 | B175: DOPEX0122C
A176: ED_OPX3212C_00023 | B176: DOPEX0123C
A177: ED_OPX3212C_00024 | B177: DOPEX0124C
A178: ED_OPX3212C_00025 | B178: DOPEX0125C
A179: ED_OPX3212C_00026 | B179: DOPEX0126C
A180: ED_OPX3212C_00027 | B180: DOPEX0127C
A181: ED_OPX3212C_00028 | B181: DOPEX0128C
A182: ED_OPX3212C_00029 | B182: DOPEX0129C
A183: ED_OPX3212C_00030 | B183: DOPEX0130C
A184: ED_OPX3212C_00031 | B184: DOPEX0131C
A185: ED_OPX3212C_00032 | B185: DOPEX0132C
A186: ED_OPX3212C_00033 | B186: DOPEX0133C
A187: ED_OPX3212C_00034 | B187: DOPEX0134C
A188: ED_OPX3212C_00035 | B188: DOPEX0135C
A189: ED_OPX3212C_00036 | B189: DOPEX0136C
A190: ED_OPX3212C_00037 | B190: DOPEX0137C
A191: ED_OPX3212C_00038 | B191: DOPEX0138C
A192: ED_OPX3212C_00039 | B192: DOPEX0139C
A193: ED_OPX3212C_00040 | B193: DOPEX0140C
A194: ED_OPX3212C_00041 | B194: DOPEX0141C
A195: ED_OPX3212C_00042 | B195: DOPEX0142C
B196: DOPEX01C | C196: Total opex | D196: ($0's) | E196: =SUM(E154:E195) -> 0 | F196: =SUM(F154:F195) -> 0
C198: TABLE 3.2.2 - OPEX CONSISTENCY
C200: Table 3.2.2.1 Opex consistency - current cost allocation approach | E200: =CRY -> 2014-15 | F200: =CRY -> 2014-15
A201: ED_OPX3221_00001 | B201: DOPEX0201 | C201: Opex for network services | E201: ='[1]3.2 Operating expenditure'!E201 -> 73579842.68 | F201: ='[1]3.2 Operating expenditure'!F201 -> 0
A202: ED_OPX3221_00002 | B202: DOPEX0202 | C202: Opex for metering | E202: ='[1]3.2 Operating expenditure'!E202 -> 0 | F202: ='[1]3.2 Operating expenditure'!F202 -> 3464628.66
A203: ED_OPX3221_00003 | B203: DOPEX0203 | C203: Opex for connection services | E203: ='[1]3.2 Operating expenditure'!E203 -> 0 | F203: ='[1]3.2 Operating expenditure'!F203 -> 4422477.65
A204: ED_OPX3221_00004 | B204: DOPEX0204 | C204: Opex for public lighting | E204: ='[1]3.2 Operating expenditure'!E204 -> 0 | F204: ='[1]3.2 Operating expenditure'!F204 -> 0
A205: ED_OPX3221_00005 | B205: DOPEX0205 | C205: Opex for amounts payable for easement levy or similar direct charges on DNSP | E205: ='[1]3.2 Operating expenditure'!E205 -> 0 | F205: ='[1]3.2 Operating expenditure'!F205 -> 0
A206: ED_OPX3221_00006 | B206: DOPEX0206 | C206: Opex for transmission connection point planning | E206: ='[1]3.2 Operating expenditure'!E206 -> 0 | F206: ='[1]3.2 Operating expenditure'!F206 -> 0
C207: Total opex | D207: ($0's) | E207: =SUM(E201:E206) -> 73579842.68 | F207: =SUM(F201:F206) -> 7887106.31
C209: Table 3.2.2.2 Opex consistency - historical cost allocation approaches | E209: =CRY -> 2014-15 | F209: =CRY -> 2014-15
A210: ED_OPX3222_00001 | B210: DOPEX0201A | C210: Opex for network services | E210: ='[1]3.2 Operating expenditure'!E210 -> 73579842.68 | F210: ='[1]3.2 Operating expenditure'!F210 -> 0
A211: ED_OPX3222_00002 | B211: DOPEX0202A | C211: Opex for metering | E211: ='[1]3.2 Operating expenditure'!E211 -> 0 | F211: ='[1]3.2 Operating expenditure'!F211 -> 3464628.66
A212: ED_OPX3222_00003 | B212: DOPEX0203A | C212: Opex for connection services | E212: ='[1]3.2 Operating expenditure'!E212 -> 0 | F212: ='[1]3.2 Operating expenditure'!F212 -> 4422477.65
A213: ED_OPX3222_00004 | B213: DOPEX0204A | C213: Opex for public lighting | E213: ='[1]3.2 Operating expenditure'!E213 -> 0 | F213: ='[1]3.2 Operating expenditure'!F213 -> 0
... 5 more rows

Sheet 3.2.3 Provisions
C1: REGULATORY REPORTING STATEMENT
C2: =dms_TradingName -> ActewAGL Distribution
C3: =CONCATENATE("Benchmarking RIN response ",CRY) -> Benchmarking RIN response 2014-15
C4: 3.2 OPERATING EXPENDITURE
C6: Instructions
C7: =CONCATENATE(dms_TradingName, " must fill in opex in table 3.2.3 for opex categories reported in response to its annual reporting RIN.") -> ActewAGL Distribution must fill in opex in table 3.2.3 for opex categories reported in response to its annual reporting RIN.
C9: TABLE 3.2.3 - PROVISIONS
C10: For each provision report:
E11: $0's
E12: =CRY -> 2014-15
B14: DOPEX03A | C14: Employee entitlements provision
C15: Provision required to account for employee entitlements such as recreation leave, long service leave and sick leave.
B16: DOPEX0301A | C16: Opening balance (the carrying amount at the beginning of the period) | E16: ='[1]3.2.3 Provisions'!E16+'[2]3.2.3 Provisions'!E16 -> 17292939
C17: Additional provisions made in the period, including increases to existing provisions
B18: DOPEX0302A | C18: Opex component | E18: ='[1]3.2.3 Provisions'!E18+'[2]3.2.3 Provisions'!E18 -> 5343635
B19: DOPEX0303A | C19: Capex component | E19: ='[1]3.2.3 Provisions'!E19+'[2]3.2.3 Provisions'!E19 -> 0
B20: DOPEX0304A | C20: Other component | E20: ='[1]3.2.3 Provisions'!E20+'[2]3.2.3 Provisions'!E20 -> 0
C21: Amounts used (that is, incurred and charged against the provision) during the period
B22: DOPEX0305A | C22: Opex component | E22: ='[1]3.2.3 Provisions'!E22+'[2]3.2.3 Provisions'!E22 -> -6264692
B23: DOPEX0306A | C23: Capex component | E23: ='[1]3.2.3 Provisions'!E23+'[2]3.2.3 Provisions'!E23 -> 0
B24: DOPEX0307A | C24: Other component | E24: ='[1]3.2.3 Provisions'!E24+'[2]3.2.3 Provisions'!E24 -> 0
C25: Unused amounts reversed during the period
B26: DOPEX0308A | C26: Opex component | E26: ='[1]3.2.3 Provisions'!E26+'[2]3.2.3 Provisions'!E26 -> -1082411
B27: DOPEX0309A | C27: Capex component | E27: ='[1]3.2.3 Provisions'!E27+'[2]3.2.3 Provisions'!E27 -> 0
B28: DOPEX0310A | C28: Other component | E28: ='[1]3.2.3 Provisions'!E28+'[2]3.2.3 Provisions'!E28 -> 0
C29: The increase during the period in the discounted amount arising from the passage of time and the effect of any change in the discount rate
B30: DOPEX0311A | C30: Opex component | E30: ='[1]3.2.3 Provisions'!E30+'[2]3.2.3 Provisions'!E30 -> 0
B31: DOPEX0312A | C31: Capex component | E31: ='[1]3.2.3 Provisions'!E31+'[2]3.2.3 Provisions'!E31 -> 0
B32: DOPEX0313A | C32: Other component | E32: ='[1]3.2.3 Provisions'!E32+'[2]3.2.3 Provisions'!E32 -> 0
B33: DOPEX0314A | C33: Closing balance (carrying amount at the end of the period) | E33: ='[1]3.2.3 Provisions'!E33+'[2]3.2.3 Provisions'!E33 -> 15289471
B34: DOPEX03B | C34: Redundancy provision
C35: The redundancy provision is based on planned management efficiencies
B36: DOPEX0301B | C36: Opening balance (the carrying amount at the beginning of the period) | E36: ='[1]3.2.3 Provisions'!E36+'[2]3.2.3 Provisions'!E36 -> 4038110
C37: Additional provisions made in the period, including increases to existing provisions
B38: DOPEX0302B | C38: Opex component | E38: ='[1]3.2.3 Provisions'!E38+'[2]3.2.3 Provisions'!E38 -> 15230868
B39: DOPEX0303B | C39: Capex component | E39: ='[1]3.2.3 Provisions'!E39+'[2]3.2.3 Provisions'!E39 -> 0
B40: DOPEX0304B | C40: Other component | E40: ='[1]3.2.3 Provisions'!E40+'[2]3.2.3 Provisions'!E40 -> 0
C41: Amounts used (that is, incurred and charged against the provision) during the period
B42: DOPEX0305B | C42: Opex component | E42: ='[1]3.2.3 Provisions'!E42+'[2]3.2.3 Provisions'!E42 -> -7404366
B43: DOPEX0306B | C43: Capex component | E43: ='[1]3.2.3 Provisions'!E43+'[2]3.2.3 Provisions'!E43 -> 0
B44: DOPEX0307B | C44: Other component | E44: ='[1]3.2.3 Provisions'!E44+'[2]3.2.3 Provisions'!E44 -> 0
C45: Unused amounts reversed during the period
B46: DOPEX0308B | C46: Opex component | E46: ='[1]3.2.3 Provisions'!E46+'[2]3.2.3 Provisions'!E46 -> 0
B47: DOPEX0309B | C47: Capex component | E47: ='[1]3.2.3 Provisions'!E47+'[2]3.2.3 Provisions'!E47 -> 0
B48: DOPEX0310B | C48: Other component | E48: ='[1]3.2.3 Provisions'!E48+'[2]3.2.3 Provisions'!E48 -> 0
C49: The increase during the period in the discounted amount arising from the passage of time and the effect of any change in the discount rate
B50: DOPEX0311B | C50: Opex component | E50: ='[1]3.2.3 Provisions'!E50+'[2]3.2.3 Provisions'!E50 -> 0
B51: DOPEX0312B | C51: Capex component | E51: ='[1]3.2.3 Provisions'!E51+'[2]3.2.3 Provisions'!E51 -> 0
B52: DOPEX0313B | C52: Other component | E52: ='[1]3.2.3 Provisions'!E52+'[2]3.2.3 Provisions'!E52 -> 0
B53: DOPEX0314B | C53: Closing balance (carrying amount at the end of the period) | E53: ='[1]3.2.3 Provisions'!E53+'[2]3.2.3 Provisions'!E53 -> 11864612
B54: DOPEX03C | C54: Public liability provision
C55: Public liability provisions include public liability and legal claims.
B56: DOPEX0301C | C56: Opening balance (the carrying amount at the beginning of the period) | E56: ='[1]3.2.3 Provisions'!E56+'[2]3.2.3 Provisions'!E56 -> 110368
C57: Additional provisions made in the period, including increases to existing provisions
B58: DOPEX0302C | C58: Opex component | E58: ='[1]3.2.3 Provisions'!E58+'[2]3.2.3 Provisions'!E58 -> 994223
B59: DOPEX0303C | C59: Capex component | E59: ='[1]3.2.3 Provisions'!E59+'[2]3.2.3 Provisions'!E59 -> 0
B60: DOPEX0304C | C60: Other component | E60: ='[1]3.2.3 Provisions'!E60+'[2]3.2.3 Provisions'!E60 -> 0
C61: Amounts used (that is, incurred and charged against the provision) during the period
B62: DOPEX0305C | C62: Opex component | E62: ='[1]3.2.3 Provisions'!E62+'[2]3.2.3 Provisions'!E62 -> -127371
B63: DOPEX0306C | C63: Capex component | E63: ='[1]3.2.3 Provisions'!E63+'[2]3.2.3 Provisions'!E63 -> 0
B64: DOPEX0307C | C64: Other component | E64: ='[1]3.2.3 Provisions'!E64+'[2]3.2.3 Provisions'!E64 -> 0
C65: Unused amounts reversed during the period
B66: DOPEX0308C | C66: Opex component | E66: ='[1]3.2.3 Provisions'!E66+'[2]3.2.3 Provisions'!E66 -> 0
B67: DOPEX0309C | C67: Capex component | E67: ='[1]3.2.3 Provisions'!E67+'[2]3.2.3 Provisions'!E67 -> 0
B68: DOPEX0310C | C68: Other component | E68: ='[1]3.2.3 Provisions'!E68+'[2]3.2.3 Provisions'!E68 -> 0
C69: The increase during the period in the discounted amount arising from the passage of time and the effect of any change in the discount rate
B70: DOPEX0311C | C70: Opex component | E70: ='[1]3.2.3 Provisions'!E70+'[2]3.2.3 Provisions'!E70 -> 0
B71: DOPEX0312C | C71: Capex component | E71: ='[1]3.2.3 Provisions'!E71+'[2]3.2.3 Provisions'!E71 -> 0
B72: DOPEX0313C | C72: Other component | E72: ='[1]3.2.3 Provisions'!E72+'[2]3.2.3 Provisions'!E72 -> 0
B73: DOPEX0314C | C73: Closing balance (carrying amount at the end of the period) | E73: ='[1]3.2.3 Provisions'!E73+'[2]3.2.3 Provisions'!E73 -> 977221
B74: DOPEX03D | C74: Workers' compensation
C75: The ACT Government and ACTEW Corporation Ltd (ACTEW) have agreed to exit ACTEW's workers' compensation arrangement with ComCare. The exit arrangements include annual payments over the period to 30 June 2022 for incidents that occurred during the period of cover, where future additional expenditure is incurred by ComCare.
B76: DOPEX0301D | C76: Opening balance (the carrying amount at the beginning of the period) | E76: ='[1]3.2.3 Provisions'!E76+'[2]3.2.3 Provisions'!E76 -> 2962521
C77: Additional provisions made in the period, including increases to existing provisions
B78: DOPEX0302D | C78: Opex component | E78: ='[1]3.2.3 Provisions'!E78+'[2]3.2.3 Provisions'!E78 -> 461211
B79: DOPEX0303D | C79: Capex component | E79: ='[1]3.2.3 Provisions'!E79+'[2]3.2.3 Provisions'!E79 -> 0
B80: DOPEX0304D | C80: Other component | E80: ='[1]3.2.3 Provisions'!E80+'[2]3.2.3 Provisions'!E80 -> 0
C81: Amounts used (that is, incurred and charged against the provision) during the period
B82: DOPEX0305D | C82: Opex component | E82: ='[1]3.2.3 Provisions'!E82+'[2]3.2.3 Provisions'!E82 -> 0
B83: DOPEX0306D | C83: Capex component | E83: ='[1]3.2.3 Provisions'!E83+'[2]3.2.3 Provisions'!E83 -> 0
B84: DOPEX0307D | C84: Other component | E84: ='[1]3.2.3 Provisions'!E84+'[2]3.2.3 Provisions'!E84 -> 0
C85: Unused amounts reversed during the period
B86: DOPEX0308D | C86: Opex component | E86: ='[1]3.2.3 Provisions'!E86+'[2]3.2.3 Provisions'!E86 -> 0
B87: DOPEX0309D | C87: Capex component | E87: ='[1]3.2.3 Provisions'!E87+'[2]3.2.3 Provisions'!E87 -> 0
B88: DOPEX0310D | C88: Other component | E88: ='[1]3.2.3 Provisions'!E88+'[2]3.2.3 Provisions'!E88 -> 0
C89: The increase during the period in the discounted amount arising from the passage of time and the effect of any change in the discount rate
B90: DOPEX0311D | C90: Opex component | E90: ='[1]3.2.3 Provisions'!E90+'[2]3.2.3 Provisions'!E90 -> -469756
B91: DOPEX0312D | C91: Capex component | E91: ='[1]3.2.3 Provisions'!E91+'[2]3.2.3 Provisions'!E91 -> 0
B92: DOPEX0313D | C92: Other component | E92: ='[1]3.2.3 Provisions'!E92+'[2]3.2.3 Provisions'!E92 -> 0
B93: DOPEX0314D | C93: Closing balance (carrying amount at the end of the period) | E93: ='[1]3.2.3 Provisions'!E93+'[2]3.2.3 Provisions'!E93 -> 2953975
B94: DOPEX03E | C94: Transmission use of System refund to customers
C95: Provision for Transmission use of System refund to customers
B96: DOPEX0301E | C96: Opening balance (the carrying amount at the beginning of the period) | E96: ='[1]3.2.3 Provisions'!E96 -> 0
C97: Additional provisions made in the period, including increases to existing provisions
B98: DOPEX0302E | C98: Opex component | E98: ='[1]3.2.3 Provisions'!E98 -> 0
B99: DOPEX0303E | C99: Capex component | E99: ='[1]3.2.3 Provisions'!E99 -> 0
B100: DOPEX0304E | C100: Other component | E100: ='[1]3.2.3 Provisions'!E100 -> 0
C101: Amounts used (that is, incurred and charged against the provision) during the period
B102: DOPEX0305E | C102: Opex component | E102: ='[1]3.2.3 Provisions'!E102 -> 0
B103: DOPEX0306E | C103: Capex component | E103: ='[1]3.2.3 Provisions'!E103 -> 0
B104: DOPEX0307E | C104: Other component | E104: ='[1]3.2.3 Provisions'!E104 -> 0
C105: Unused amounts reversed during the period
B106: DOPEX0308E | C106: Opex component | E106: ='[1]3.2.3 Provisions'!E106 -> 0
B107: DOPEX0309E | C107: Capex component | E107: ='[1]3.2.3 Provisions'!E107 -> 0
B108: DOPEX0310E | C108: Other component | E108: ='[1]3.2.3 Provisions'!E108 -> 0
C109: The increase during the period in the discounted amount arising from the passage of time and the effect of any change in the discount rate
B110: DOPEX0311E | C110: Opex component | E110: ='[1]3.2.3 Provisions'!E110 -> 0
B111: DOPEX0312E | C111: Capex component | E111: ='[1]3.2.3 Provisions'!E111 -> 0
B112: DOPEX0313E | C112: Other component | E112: ='[1]3.2.3 Provisions'!E112 -> 0
B113: DOPEX0314E | C113: Closing balance (carrying amount at the end of the period) | E113: ='[1]3.2.3 Provisions'!E113 -> 0
B114: DOPEX03F | C114: Provision name
C115: Brief description of provision
B116: DOPEX0301F | C116: Opening balance (the carrying amount at the beginning of the period)
C117: Additional provisions made in the period, including increases to existing provisions
B118: DOPEX0302F | C118: Opex component
B119: DOPEX0303F | C119: Capex component
B120: DOPEX0304F | C120: Other component
C121: Amounts used (that is, incurred and charged against the provision) during the period
B122: DOPEX0305F | C122: Opex component
B123: DOPEX0306F | C123: Capex component
B124: DOPEX0307F | C124: Other component
C125: Unused amounts reversed during the period
B126: DOPEX0308F | C126: Opex component
B127: DOPEX0309F | C127: Capex component
B128: DOPEX0310F | C128: Other component
C129: The increase during the period in the discounted amount arising from the passage of time and the effect of any change in the discount rate
B130: DOPEX0311F | C130: Opex component
B131: DOPEX0312F | C131: Capex component
B132: DOPEX0313F | C132: Other component
B133: DOPEX0314F | C133: Closing balance (carrying amount at the end of the period)
B134: DOPEX03G | C134: Provision name
C135: Brief description of provision
B136: DOPEX0301G | C136: Opening balance (the carrying amount at the beginning of the period)
C137: Additional provisions made in the period, including increases to existing provisions
B138: DOPEX0302G | C138: Opex component
B139: DOPEX0303G | C139: Capex component
B140: DOPEX0304G | C140: Other component
C141: Amounts used (that is, incurred and charged against the provision) during the period
B142: DOPEX0305G | C142: Opex component
B143: DOPEX0306G | C143: Capex component
B144: DOPEX0307G | C144: Other component
C145: Unused amounts reversed during the period
B146: DOPEX0308G | C146: Opex component
B147: DOPEX0309G | C147: Capex component
B148: DOPEX0310G | C148: Other component
C149: The increase during the period in the discounted amount arising from the passage of time and the effect of any change in the discount rate
B150: DOPEX0311G | C150: Opex component
B151: DOPEX0312G | C151: Capex component
B152: DOPEX0313G | C152: Other component
B153: DOPEX0314G | C153: Closing balance (carrying amount at the end of the period)
B154: DOPEX03H | C154: Provision name
C155: Brief description of provision
B156: DOPEX0301H | C156: Opening balance (the carrying amount at the beginning of the period)
C157: Additional provisions made in the period, including increases to existing provisions
B158: DOPEX0302H | C158: Opex component
B159: DOPEX0303H | C159: Capex component
B160: DOPEX0304H | C160: Other component
C161: Amounts used (that is, incurred and charged against the provision) during the period
B162: DOPEX0305H | C162: Opex component
B163: DOPEX0306H | C163: Capex component
B164: DOPEX0307H | C164: Other component
C165: Unused amounts reversed during the period
B166: DOPEX0308H | C166: Opex component
B167: DOPEX0309H | C167: Capex component
B168: DOPEX0310H | C168: Other component
C169: The increase during the period in the discounted amount arising from the passage of time and the effect of any change in the discount rate
B170: DOPEX0311H | C170: Opex component
B171: DOPEX0312H | C171: Capex component
B172: DOPEX0313H | C172: Other component
B173: DOPEX0314H | C173: Closing balance (carrying amount at the end of the period)
B174: DOPEX03I | C174: Provision name
C175: Brief description of provision
B176: DOPEX0301I | C176: Opening balance (the carrying amount at the beginning of the period)
C177: Additional provisions made in the period, including increases to existing provisions
B178: DOPEX0302I | C178: Opex component
B179: DOPEX0303I | C179: Capex component
B180: DOPEX0304I | C180: Other component
C181: Amounts used (that is, incurred and charged against the provision) during the period
B182: DOPEX0305I | C182: Opex component
B183: DOPEX0306I | C183: Capex component
B184: DOPEX0307I | C184: Other component
C185: Unused amounts reversed during the period
B186: DOPEX0308I | C186: Opex component
B187: DOPEX0309I | C187: Capex component
B188: DOPEX0310I | C188: Other component
C189: The increase during the period in the discounted amount arising from the passage of time and the effect of any change in the discount rate
B190: DOPEX0311I | C190: Opex component
B191: DOPEX0312I | C191: Capex component
B192: DOPEX0313I | C192: Other component
B193: DOPEX0314I | C193: Closing balance (carrying amount at the end of the period)
B194: DOPEX03J | C194: Provision name
C195: Brief description of provision
B196: DOPEX0301J | C196: Opening balance (the carrying amount at the beginning of the period)
C197: Additional provisions made in the period, including increases to existing provisions
B198: DOPEX0302J | C198: Opex component
B199: DOPEX0303J | C199: Capex component
B200: DOPEX0304J | C200: Other component
C201: Amounts used (that is, incurred and charged against the provision) during the period
B202: DOPEX0305J | C202: Opex component
B203: DOPEX0306J | C203: Capex component
... 170 more rows

Sheet 3.3 Assets (RAB)
C1: REGULATORY REPORTING STATEMENT
C2: =dms_TradingName -> ActewAGL Distribution
C3: =CONCATENATE("Benchmarking RIN response ",CRY) -> Benchmarking RIN response 2014-15
C4: 3.3 ASSETS
E7: Network services | F7: Standard control services | G7: Alternative control services
E8: Actual ($0's)
E9: =CRY -> 2014-15 | F9: =CRY -> 2014-15 | G9: =CRY -> 2014-15
C11: TABLE 3.3.1 - REGULATORY ASSET BASE VALUES
C12: For total asset base:
A13: ED_RAB331_00001 | B13: DRAB0101 | C13: Opening value | E13: 846577353.1 | F13: 846577353.1 | G13: 49992286.4
A14: ED_RAB331_00002 | B14: DRAB0102 | C14: Inflation addition | E14: 21395175.74 | F14: 21395175.74 | G14: 1244807.931
A15: ED_RAB331_00003 | B15: DRAB0103 | C15: Straight line depreciation | E15: -52051770.25 | F15: -52051770.25 | G15: -3033419.108
A16: ED_RAB331_00004 | B16: DRAB0104 | C16: Regulatory depreciation | E16: -30656594.51 | F16: -30656594.51 | G16: -1788611.177
A17: ED_RAB331_00005 | B17: DRAB0105 | C17: Actual additions (recognised in RAB) | E17: 75556477.9 | F17: 75556477.9 | G17: 5068340.961
A18: ED_RAB331_00006 | B18: DRAB0106 | C18: Disposals | E18: 0 | F18: 0 | G18: 0
A19: ED_RAB331_00007 | B19: DRAB0107 | C19: Closing value for overhead distribution asset value | E19: 891477236.5 | F19: 891477236.5 | G19: 53272016.19
C21: TABLE 3.3.2 - ASSET VALUE ROLL FORWARD
C22: For overhead network assets less than 33kV:
A23: ED_RAB3321_00001 | B23: DRAB0201 | C23: Opening value | E23: 175854143.8 | F23: 175854143.8 | G23: 0
A24: ED_RAB3321_00002 | B24: DRAB0202 | C24: Inflation addition | E24: 4452448.388 | F24: 4452448.388 | G24: 0
A25: ED_RAB3321_00003 | B25: DRAB0203 | C25: Straight line depreciation | E25: -8836016.701 | F25: -8836016.701 | G25: 0
A26: ED_RAB3321_00004 | B26: DRAB0204 | C26: Regulatory depreciation | E26: -4383568.313 | F26: -4383568.313 | G26: 0
A27: ED_RAB3321_00005 | B27: DRAB0205 | C27: Actual additions (recognised in RAB) | E27: 20426123.27 | F27: 20426123.27 | G27: 0
A28: ED_RAB3321_00006 | B28: DRAB0206 | C28: Disposals | E28: 0 | F28: 0 | G28: 0
A29: ED_RAB3321_00007 | B29: DRAB0207 | C29: Closing value for overhead distribution asset value | E29: 191896698.7 | F29: 191896698.7 | G29: 0
C30: For underground network assets less than 33kV:
A31: ED_RAB3322_00001 | B31: DRAB0301 | C31: Opening value | E31: 268778742.4 | F31: 268778742.4 | G31: 0
A32: ED_RAB3322_00002 | B32: DRAB0302 | C32: Inflation addition | E32: 6816734.028 | F32: 6816734.028 | G32: 0
A33: ED_RAB3322_00003 | B33: DRAB0303 | C33: Straight line depreciation | E33: -12021616.53 | F33: -12021616.53 | G33: 0
A34: ED_RAB3322_00004 | B34: DRAB0304 | C34: Regulatory depreciation | E34: -5204882.504 | F34: -5204882.504 | G34: 0
A35: ED_RAB3322_00005 | B35: DRAB0305 | C35: Actual additions (recognised in RAB) | E35: 12825645.39 | F35: 12825645.39 | G35: 0
A36: ED_RAB3322_00006 | B36: DRAB0306 | C36: Disposals | E36: 0 | F36: 0 | G36: 0
A37: ED_RAB3322_00007 | B37: DRAB0307 | C37: Closing value for underground asset value | E37: 276399505.3 | F37: 276399505.3 | G37: 0
C38: For distribution substations and transformers:
A39: ED_RAB3323_00001 | B39: DRAB0401 | C39: Opening value | E39: 170044690.6 | F39: 170044690.6 | G39: 0
A40: ED_RAB3323_00002 | B40: DRAB0402 | C40: Inflation addition | E40: 4309336.464 | F40: 4309336.464 | G40: 0
A41: ED_RAB3323_00003 | B41: DRAB0403 | C41: Straight line depreciation | E41: -10886802.84 | F41: -10886802.84 | G41: 0
A42: ED_RAB3323_00004 | B42: DRAB0404 | C42: Regulatory depreciation | E42: -6577466.379 | F42: -6577466.379 | G42: 0
A43: ED_RAB3323_00005 | B43: DRAB0405 | C43: Actual additions (recognised in RAB) | E43: 6880614.366 | F43: 6880614.366 | G43: 0
A44: ED_RAB3323_00006 | B44: DRAB0406 | C44: Disposals | E44: 0 | F44: 0 | G44: 0
A45: ED_RAB3323_00007 | B45: DRAB0407 | C45: Closing value for distribution substations and transformers asset value | E45: 170347838.5 | F45: 170347838.5 | G45: 0
C46: For overhead network assets 33kV and above:
A47: ED_RAB3324_00001 | B47: DRAB0501 | C47: Opening value | E47: 52162901.46 | F47: 52162901.46 | G47: 0
A48: ED_RAB3324_00002 | B48: DRAB0502 | C48: Inflation addition | E48: 1313651.34 | F48: 1313651.34 | G48: 0
A49: ED_RAB3324_00003 | B49: DRAB0503 | C49: Straight line depreciation | E49: -2655305.647 | F49: -2655305.647 | G49: 0
A50: ED_RAB3324_00004 | B50: DRAB0504 | C50: Regulatory depreciation | E50: -1341654.308 | F50: -1341654.308 | G50: 0
A51: ED_RAB3324_00005 | B51: DRAB0505 | C51: Actual additions (recognised in RAB) | E51: 790715.8738 | F51: 790715.8738 | G51: 0
A52: ED_RAB3324_00006 | B52: DRAB0506 | C52: Disposals | E52: 0 | F52: 0 | G52: 0
A53: ED_RAB3324_00007 | B53: DRAB0507 | C53: Closing value for overhead asset 33kV and above value | E53: 51611963.03 | F53: 51611963.03 | G53: 0
C54: For underground network assets 33kV and above:
A55: ED_RAB3325_00001 | B55: DRAB0601 | C55: Opening value | E55: 615239.8774 | F55: 615239.8774 | G55: 0
A56: ED_RAB3325_00002 | B56: DRAB0602 | C56: Inflation addition | E56: 15710.6686 | F56: 15710.6686 | G56: 0
A57: ED_RAB3325_00003 | B57: DRAB0603 | C57: Straight line depreciation | E57: -33769.70864 | F57: -33769.70864 | G57: 0
A58: ED_RAB3325_00004 | B58: DRAB0604 | C58: Regulatory depreciation | E58: -18059.04005 | F58: -18059.04005 | G58: 0
A59: ED_RAB3325_00005 | B59: DRAB0605 | C59: Actual additions (recognised in RAB) | E59: 0 | F59: 0 | G59: 0
A60: ED_RAB3325_00006 | B60: DRAB0606 | C60: Disposals | E60: 0 | F60: 0 | G60: 0
A61: ED_RAB3325_00007 | B61: DRAB0607 | C61: Closing value for underground asset 33kV and above value | E61: 597180.8374 | F61: 597180.8374 | G61: 0
C62: Zone substations and transformers
A63: ED_RAB3326_00001 | B63: DRAB0701 | C63: Opening value | E63: 72332607.71 | F63: 72332607.71 | G63: 0
A64: ED_RAB3326_00002 | B64: DRAB0702 | C64: Inflation addition | E64: 1814009.774 | F64: 1814009.774 | G64: 0
A65: ED_RAB3326_00003 | B65: DRAB0703 | C65: Straight line depreciation | E65: -3012046.097 | F65: -3012046.097 | G65: 0
A66: ED_RAB3326_00004 | B66: DRAB0704 | C66: Regulatory depreciation | E66: -1198036.323 | F66: -1198036.323 | G66: 0
A67: ED_RAB3326_00005 | B67: DRAB0705 | C67: Actual additions (recognised in RAB) | E67: 4264665.645 | F67: 4264665.645 | G67: 0
A68: ED_RAB3326_00006 | B68: DRAB0706 | C68: Disposals | E68: 0 | F68: 0 | G68: 0
A69: ED_RAB3326_00007 | B69: DRAB0707 | C69: Closing value for zone substations and transformers | E69: 75399237.03 | F69: 75399237.03 | G69: 0
C70: For easements:
A71: ED_RAB3327_00001 | B71: DRAB0801 | C71: Opening value
A72: ED_RAB3327_00002 | B72: DRAB0802 | C72: Inflation addition
A73: ED_RAB3327_00003 | B73: DRAB0805 | C73: Actual additions (recognised in RAB)
A74: ED_RAB3327_00004 | B74: DRAB0806 | C74: Disposals
A75: ED_RAB3327_00005 | B75: DRAB0807 | C75: Closing value for easements asset value | E75: 0 | F75: 0 | G75: 0
C76: For meters:
A77: ED_RAB3328_00001 | B77: DRAB0901 | C77: Opening value | E77: 0 | F77: 0 | G77: 49992286.4
A78: ED_RAB3328_00002 | B78: DRAB0902 | C78: Inflation addition | E78: 0 | F78: 0 | G78: 1244807.931
A79: ED_RAB3328_00003 | B79: DRAB0903 | C79: Straight line depreciation | E79: 0 | F79: 0 | G79: -3033419.108
A80: ED_RAB3328_00004 | B80: DRAB0904 | C80: Regulatory depreciation | E80: 0 | F80: 0 | G80: -1788611.177
A81: ED_RAB3328_00005 | B81: DRAB0905 | C81: Actual additions (recognised in RAB) | E81: 0 | F81: 0 | G81: 5068340.961
A82: ED_RAB3328_00006 | B82: DRAB0906 | C82: Disposals | E82: 0 | F82: 0 | G82: 0
A83: ED_RAB3328_00007 | B83: DRAB0907 | C83: Closing value for meters asset value | E83: 0 | F83: 0 | G83: 53272016.19
C84: For “other” asset items with long lives:
A85: ED_RAB3329_00001 | B85: DRAB1001 | C85: Opening value | E85: 73441256.39 | F85: 73441256.39 | G85: 0
A86: ED_RAB3329_00002 | B86: DRAB1002 | C86: Inflation addition | E86: 1837888.187 | F86: 1837888.187 | G86: 0
A87: ED_RAB3329_00003 | B87: DRAB1003 | C87: Straight line depreciation | E87: -4778032.459 | F87: -4778032.459 | G87: 0
A88: ED_RAB3329_00004 | B88: DRAB1004 | C88: Regulatory depreciation | E88: -2940144.272 | F88: -2940144.272 | G88: 0
A89: ED_RAB3329_00005 | B89: DRAB1005 | C89: Actual additions (recognised in RAB) | E89: 22707907.69 | F89: 22707907.69 | G89: 0
A90: ED_RAB3329_00006 | B90: DRAB1006 | C90: Disposals | E90: 0 | F90: 0 | G90: 0
A91: ED_RAB3329_00007 | B91: DRAB1007 | C91: Closing value for “other” asset (long life) value | E91: 93209019.81 | F91: 93209019.81 | G91: 0
C92: For “other” asset items with short lives:
A93: ED_RAB33210_00001 | B93: DRAB1101 | C93: Opening value | E93: 33347770.95 | F93: 33347770.95 | G93: 0
A94: ED_RAB33210_00002 | B94: DRAB1102 | C94: Inflation addition | E94: 835396.887 | F94: 835396.887 | G94: 0
A95: ED_RAB33210_00003 | B95: DRAB1103 | C95: Straight line depreciation | E95: -9828180.258 | F95: -9828180.258 | G95: 0
A96: ED_RAB33210_00004 | B96: DRAB1104 | C96: Regulatory depreciation | E96: -8992783.371 | F96: -8992783.371 | G96: 0
A97: ED_RAB33210_00005 | B97: DRAB1105 | C97: Actual additions (recognised in RAB) | E97: 7682970.529 | F97: 7682970.529 | G97: 0
A98: ED_RAB33210_00006 | B98: DRAB1106 | C98: Disposals | E98: 0 | F98: 0 | G98: 0
A99: ED_RAB33210_00007 | B99: DRAB1107 | C99: Closing value for “other” asset (short life) value | E99: 32037958.11 | F99: 32037958.11 | G99: 0
C101: TABLE 3.3.3 - TOTAL DISAGGREGATED RAB ASSET VALUES
A102: ED_RAB333_00001 | B102: DRAB1201 | C102: Overhead distribution assets (wires and poles) | E102: 183875421.3 | F102: 183875421.3 | G102: 0
A103: ED_RAB333_00002 | B103: DRAB1202 | C103: Underground distribution assets (cables, ducts etc) | E103: 272589123.8 | F103: 272589123.8 | G103: 0
A104: ED_RAB333_00003 | B104: DRAB1203 | C104: Distribution substations including transformers | E104: 170196264.5 | F104: 170196264.5 | G104: 0
A105: ED_RAB333_00004 | B105: DRAB1204 | C105: Overhead assets 33kV and above (wires and towers / poles etc) | E105: 51887432.25 | F105: 51887432.25 | G105: 0
A106: ED_RAB333_00005 | B106: DRAB1205 | C106: Underground assets 33kV and above (cables, ducts etc) | E106: 606210.3574 | F106: 606210.3574 | G106: 0
A107: ED_RAB333_00006 | B107: DRAB1206 | C107: Zone substations | E107: 73865922.37 | F107: 73865922.37 | G107: 0
A108: ED_RAB333_00007 | B108: DRAB1207 | C108: Easements
A109: ED_RAB333_00008 | B109: DRAB1208 | C109: Meters | E109: 0 | F109: 0 | G109: 51632151.3
A110: ED_RAB333_00009 | B110: DRAB1209 | C110: Other assets with long lives (please specify) | E110: 83325138.1 | F110: 83325138.1 | G110: 0
A111: ED_RAB333_00010 | B111: DRAB1210 | C111: Other assets with short lives (please specify) | E111: 32692864.53 | F111: 32692864.53 | G111: 0
C113: Capital Contributions
A114: ED_RAB333_00011 | B114: DRAB13 | C114: Value of Capital Contributions or Contributed Assets | E114: 0 | F114: 6728137.685 | G114: 0
C116: TABLE 3.3.4 - ASSET LIVES | E116: Service Life (Years)
C117: Table 3.3.4.1 Asset Lives – estimated service life of new assets | E117: =CRY -> 2014-15 | F117: =CRY -> 2014-15 | G117: =CRY -> 2014-15
A118: ED_RAB3341_00001 | B118: DRAB1401 | C118: Overhead network assets less than 33kV (wires and poles) | E118: 62 | F118: 62 | G118: 0
A119: ED_RAB3341_00002 | B119: DRAB1402 | C119: Underground network assets less than 33kV (cables) | E119: 48 | F119: 48 | G119: 0
A120: ED_RAB3341_00003 | B120: DRAB1403 | C120: Distribution substations including transformers | E120: 72.8 | F120: 72.8 | G120: 0
A121: ED_RAB3341_00004 | B121: DRAB1404 | C121: Overhead network assets 33kV and above (wires and towers / poles etc) | E121: 60 | F121: 60 | G121: 0
A122: ED_RAB3341_00005 | B122: DRAB1405 | C122: Underground network assets 33kV and above(cables, ducts etc) | E122: 50 | F122: 50 | G122: 0
A123: ED_RAB3341_00006 | B123: DRAB1406 | C123: Zone substations and transformers | E123: 46.1 | F123: 46.1 | G123: 0
A124: ED_RAB3341_00007 | B124: DRAB1407 | C124: Meters | E124: 0 | F124: 0 | G124: 20
A125: ED_RAB3341_00008 | B125: DRAB1408 | C125: “Other” assets with long lives | E125: 10.47570537 | F125: 10.47570537 | G125: 0
A126: ED_RAB3341_00009 | B126: DRAB1409 | C126: “Other” assets with short lives | E126: 6.495558914 | F126: 6.495558914 | G126: 0
C128: Table 3.3.4.2 Asset Lives – estimated residual service life
A129: ED_RAB3342_00001 | B129: DRAB1501 | C129: Overhead network assets less than 33kV (wires and poles) | E129: 28.22364545 | F129: 28.22364545 | G129: 0
A130: ED_RAB3342_00002 | B130: DRAB1502 | C130: Underground network assets less than 33kV (cables) | E130: 21.42579412 | F130: 21.42579412 | G130: 0
A131: ED_RAB3342_00003 | B131: DRAB1503 | C131: Distribution substations including transformers | E131: 48.27595636 | F131: 48.27595636 | G131: 0
A132: ED_RAB3342_00004 | B132: DRAB1504 | C132: Overhead network assets 33kV and above (wires and towers / poles etc) | E132: 25.94616404 | F132: 25.94616404 | G132: 0
A133: ED_RAB3342_00005 | B133: DRAB1505 | C133: Underground network assets 33kV and above (cables, ducts etc) | E133: 42.79147676 | F133: 42.79147676 | G133: 0
A134: ED_RAB3342_00006 | B134: DRAB1506 | C134: Zone substations and transformers | E134: 21.12700685 | F134: 21.12700685 | G134: 0
A135: ED_RAB3342_00007 | B135: DRAB1507 | C135: Meters | E135: 0 | F135: 0 | G135: 14.07
A136: ED_RAB3342_00008 | B136: DRAB1508 | C136: “Other” assets with long lives | E136: 22.15675102 | F136: 22.15675102 | G136: 0
A137: ED_RAB3342_00009 | B137: DRAB1509 | C137: “Other” assets with short lives | E137: 4.079229559 | F137: 4.079229559 | G137: 0

Sheet 3.4 Operational data
C1: REGULATORY REPORTING STATEMENT
C2: =dms_TradingName -> ActewAGL Distribution
C3: =CONCATENATE("Benchmarking RIN response ",CRY) -> Benchmarking RIN response 2014-15
C4: 3.4 OPERATIONAL DATA
E7: Standard control services
E8: Actual
E9: =CRY -> 2014-15
D10: Unit
C11: TABLE 3.4.1 - ENERGY DELIVERY
A12: ED_OPD3410_00001 | B12: DOPED01 | C12: Total energy delivered | D12: GWh | E12: 2856.06
C15: Table 3.4.1.1 Energy grouping - delivery by chargeable quantity
A16: ED_OPD3411_00001 | B16: DOPED0201 | C16: Energy Delivery where time of use is not a determinant | D16: GWh | E16: 1371.152
A17: ED_OPD3411_00002 | B17: DOPED0202 | C17: Energy Delivery at On-peak times | D17: GWh | E17: 549.824
A18: ED_OPD3411_00003 | B18: DOPED0203 | C18: Energy Delivery at Shoulder times | D18: GWh | E18: 205.136
A19: ED_OPD3411_00004 | B19: DOPED0204 | C19: Energy Delivery at Off-peak times | D19: GWh | E19: 633.849
A20: ED_OPD3411_00005 | B20: DOPED0205 | C20: Controlled load energy deliveries | D20: GWh | E20: 94.577
A21: ED_OPD3411_00005 | B21: DOPED0206 | C21: Energy Delivery to unmetered supplies | D21: GWh | E21: 1.522
C23: Table 3.4.1.2 Energy - received from TNSP and other DNSPs by time of receipt
A24: ED_OPD3412_00001 | B24: DOPED0301 | C24: Energy into DNSP network at On-peak times | D24: GWh | E24: 523.275
A25: ED_OPD3412_00002 | B25: DOPED0302 | C25: Energy into DNSP network at Shoulder times | D25: GWh | E25: 968.563
A26: ED_OPD3412_00003 | B26: DOPED0303 | C26: Energy into DNSP network at Off-peak times | D26: GWh | E26: 1382.696
A27: ED_OPD3412_00004 | B27: DOPED0304 | C27: Energy received from TNSP and other DNSPs not included in the above categories | D27: GWh | E27: 0
C29: Table 3.4.1.3 Energy - received into DNSP system from embedded generation by time of receipt
A30: ED_OPD3413_00001 | B30: DOPED0401 | C30: Energy into DNSP network at On-peak times from non-residential embedded generation | D30: GWh | E30: 2.568
A31: ED_OPD3413_00002 | B31: DOPED0402 | C31: Energy into DNSP network at Shoulder times from non-residential embedded generation | D31: GWh | E31: 20.764
A32: ED_OPD3413_00003 | B32: DOPED0403 | C32: Energy into DNSP network at Off-peak times from non-residential embedded generation | D32: GWh | E32: 10.111
A33: ED_OPD3413_00004 | B33: DOPED0404 | C33: Energy received from embedded generation not included in above categories from non-residential embedded generation | D33: GWh | E33: 23.805
A34: ED_OPD3413_00005 | B34: DOPED0405 | C34: Energy into DNSP network at On-peak times from residential embedded generation | D34: GWh | E34: 0
A35: ED_OPD3413_00006 | B35: DOPED0406 | C35: Energy into DNSP network at Shoulder times from residential embedded generation | D35: GWh | E35: 0
A36: ED_OPD3413_00007 | B36: DOPED0407 | C36: Energy into DNSP network at Off-peak times from residential embedded generation | D36: GWh | E36: 0
A37: ED_OPD3413_00008 | B37: DOPED0408 | C37: Energy received from embedded generation not included in above categories from residential embedded generation | D37: GWh | E37: 56.303
C39: Table 3.4.1.4 Energy grouping - customer type or class
A40: ED_OPD3414_00001 | B40: DOPED0501 | C40: Residential customers energy deliveries | D40: GWh | E40: 1154.84
A41: ED_OPD3414_00002 | B41: DOPED0502 | C41: Non residential customers not on demand tariffs energy deliveries | D41: GWh | E41: 440.262
A42: ED_OPD3414_00003 | B42: DOPED0503 | C42: Non-residential low voltage demand tariff customers energy deliveries | D42: GWh | E42: 890.033
A43: ED_OPD3414_00004 | B43: DOPED0504 | C43: Non-residential high voltage demand tariff customers energy deliveries | D43: GWh | E43: 370.925
A44: ED_OPD3414_00005 | B44: DOPED0505 | C44: Other Customer Class Energy Deliveries | D44: GWh | E44: 0
C46: TABLE 3.4.2 - CUSTOMER NUMBERS
C47: Table 3.4.2.1 Distribution customer numbers by customer type or class
A48: ED_OPD3421_00001 | B48: DOPCN0101 | C48: Residential customer numbers | D48: number | E48: 163664
A49: ED_OPD3421_00002 | B49: DOPCN0102 | C49: Non residential customers not on demand tariff customer numbers | D49: number | E49: 14028
A50: ED_OPD3421_00003 | B50: DOPCN0103 | C50: Low voltage demand tariff customer numbers | D50: number | E50: 1867
A51: ED_OPD3421_00004 | B51: DOPCN0104 | C51: High voltage demand tariff customer numbers | D51: number | E51: 25
A52: ED_OPD3421_00005 | B52: DOPCN0105 | C52: Unmetered Customer Numbers | D52: number | E52: 23
A53: ED_OPD3421_00006 | B53: DOPCN0106 | C53: Other Customer Numbers | D53: number | E53: 2244
A54: ED_OPD3421_99999 | B54: DOPCN01 | C54: Total customer numbers | D54: number | E54: 181851
C56: Table 3.4.2.2 Distribution customer numbers by location on the network
A57: ED_OPD3422_00001 | B57: DOPCN0201 | C57: Customers on CBD network | D57: number | E57: 0
A58: ED_OPD3422_00002 | B58: DOPCN0202 | C58: Customers on Urban network | D58: number | E58: 122462
A59: ED_OPD3422_00003 | B59: DOPCN0203 | C59: Customers on Short rural network | D59: number | E59: 59264
A60: ED_OPD3422_00004 | B60: DOPCN0204 | C60: Customers on Long rural network | D60: number | E60: 0
A61: ED_OPD3422_99999 | B61: DOPCN02 | C61: Total customer numbers | D61: number | E61: 181726
C63: Table 3.4.2.3 Distribution customer numbers by Aurora Feeder categories (Aurora only)
A64: ED_OPD3423_00001 | C64: Critical Infrastructure | D64: number | E64: 0
A65: ED_OPD3423_00002 | C65: High Density Commercial | D65: number | E65: 0
A66: ED_OPD3423_00003 | C66: Urban | D66: number | E66: 0
A67: ED_OPD3423_00004 | C67: High Density Rural | D67: number | E67: 0
A68: ED_OPD3423_00005 | C68: Low Density Rural | D68: number | E68: 0
A69: ED_OPD3423_99999 | C69: Total customer numbers | D69: number | E69: 0
C71: Table 3.4.2.4 Unmetered Supply (Aurora only)
A72: ED_OPD3424_00001 | B72: DOPCN0301 | C72: Number of unmetered connections reported in customer numbers in the economic benchmarking RIN | D72: number | E72: 0
A73: ED_OPD3424_00002 | B73: DOPCN0302 | C73: Unmetered connections not reported in customer numbers in the economic benchmarking RIN | D73: number | E73: 0
A74: ED_OPD3424_99999 | B74: DOPCN0303 | C74: Total unmetered connections | D74: number | E74: 0
C76: TABLE 3.4.3 - SYSTEM DEMAND
C77: Table 3.4.3.1 Annual system maximum demand characteristics at the zone substation level – MW measure
A78: ED_OPD3431_00001 | B78: DOPSD0101 | C78: Non-coincident Summated Raw System Annual Maximum Demand | D78: MW | E78: 630.471
A79: ED_OPD3431_00002 | B79: DOPSD0102 | C79: Non–coincident Summated Weather Adjusted System Annual Maximum Demand 10% POE | D79: MW | E79: 649.543
A80: ED_OPD3431_00003 | B80: DOPSD0103 | C80: Non–coincident Summated Weather Adjusted System Annual Maximum Demand 50% POE | D80: MW | E80: 626.27
A81: ED_OPD3431_00004 | B81: DOPSD0104 | C81: Coincident Raw System Annual Maximum Demand | D81: MW | E81: 566.317
A82: ED_OPD3431_00005 | B82: DOPSD0105 | C82: Coincident Weather Adjusted System Annual Maximum Demand 10% POE | D82: MW | E82: 591.69
A83: ED_OPD3431_00006 | B83: DOPSD0106 | C83: Coincident Weather Adjusted System Annual Maximum Demand 50% POE | D83: MW | E83: 575.772
C85: Table 3.4.3.2 Annual system maximum demand characteristics at the transmission connection point – MW measure
A86: ED_OPD3432_00001 | B86: DOPSD0107 | C86: Non-coincident Summated Raw System Annual Maximum Demand | D86: MW | E86: 723.989
A87: ED_OPD3432_00002 | B87: DOPSD0108 | C87: Non–coincident Summated Weather Adjusted System Annual Maximum Demand 10% POE | D87: MW | E87: 727.399
A88: ED_OPD3432_00003 | B88: DOPSD0109 | C88: Non–coincident Summated Weather Adjusted System Annual Maximum Demand 50% POE | D88: MW | E88: 691.943
A89: ED_OPD3432_00004 | B89: DOPSD0110 | C89: Coincident Raw System Annual Maximum Demand | D89: MW | E89: 591.941
A90: ED_OPD3432_00005 | B90: DOPSD0111 | C90: Coincident Weather Adjusted System Annual Maximum Demand 10% POE | D90: MW | E90: 618.464
A91: ED_OPD3432_00006 | B91: DOPSD0112 | C91: Coincident Weather Adjusted System Annual Maximum Demand 50% POE | D91: MW | E91: 601.824
C93: Table 3.4.3.3 Annual system maximum demand characteristics at the zone substation level – MVA measure
A94: ED_OPD3433_00001 | B94: DOPSD0201 | C94: Non–coincident Summated Raw System Annual Maximum Demand | D94: MVA | E94: 654.416
A95: ED_OPD3433_00002 | B95: DOPSD0202 | C95: Non–coincident Summated Weather Adjusted System Annual Maximum Demand 10% POE | D95: MVA | E95: 674.212
A96: ED_OPD3433_00003 | B96: DOPSD0203 | C96: Non–coincident Summated Weather Adjusted System Annual Maximum Demand 50% POE | D96: MVA | E96: 649.925
A97: ED_OPD3433_00004 | B97: DOPSD0204 | C97: Coincident Raw System Annual Maximum Demand | D97: MVA | E97: 593.732
A98: ED_OPD3433_00005 | B98: DOPSD0205 | C98: Coincident Weather Adjusted System Annual Maximum Demand 10% POE | D98: MVA | E98: 620.334
A99: ED_OPD3433_00006 | B99: DOPSD0206 | C99: Coincident Weather Adjusted System Annual Maximum Demand 50% POE | D99: MVA | E99: 603.645
C101: Table 3.4.3.4 Annual system maximum demand characteristics at the transmission connection point – MVA measure
A102: ED_OPD3434_00001 | B102: DOPSD0207 | C102: Non–coincident Summated Raw System Annual Maximum Demand | D102: MVA | E102: 739.289
A103: ED_OPD3434_00002 | B103: DOPSD0208 | C103: Non–coincident Summated Weather Adjusted System Annual Maximum Demand 10% POE | D103: MVA | E103: 742.82
A104: ED_OPD3434_00003 | B104: DOPSD0209 | C104: Non–coincident Summated Weather Adjusted System Annual Maximum Demand 50% POE | D104: MVA | E104: 706.548
A105: ED_OPD3434_00004 | B105: DOPSD0210 | C105: Coincident Raw System Annual Maximum Demand | D105: MVA | E105: 620.765
A106: ED_OPD3434_00005 | B106: DOPSD0211 | C106: Coincident Weather Adjusted System Annual Maximum Demand 10% POE | D106: MVA | E106: 648.578
A107: ED_OPD3434_00006 | B107: DOPSD0212 | C107: Coincident Weather Adjusted System Annual Maximum Demand 50% POE | D107: MVA | E107: 631.13
C109: Table 3.4.3.5 Power factor conversion between MVA and MW
A110: ED_OPD3435_00001 | B110: DOPSD0301 | C110: Average overall network power factor conversion between MVA and MW | D110: Factor | E110: 0.98
A111: ED_OPD3435_00002 | B111: DOPSD0302 | C111: Average power factor conversion for low voltage distribution lines | D111: Factor | E111: 0.99
A112: ED_OPD3435_00003 | B112: DOPSD0303 | C112: Average power factor conversion for 3.3 kV lines | D112: Factor | E112: 0
A113: ED_OPD3435_00004 | B113: DOPSD0304 | C113: Average power factor conversion for 6.6 kV lines | D113: Factor | E113: 0
A114: ED_OPD3435_00005 | B114: DOPSD0305 | C114: Average power factor conversion for 7.6 kV lines | D114: Factor | E114: 0
A115: ED_OPD3435_00006 | B115: DOPSD0306 | C115: Average power factor conversion for 11 kV lines | D115: Factor | E115: 0.975
A116: ED_OPD3435_00007 | B116: DOPSD0307 | C116: Average power factor conversion for SWER lines | D116: Factor | E116: 0
A117: ED_OPD3435_00008 | B117: DOPSD0308 | C117: Average power factor conversion for 22 kV lines | D117: Factor | E117: 0.94
A118: ED_OPD3435_00009 | B118: DOPSD0309 | C118: Average power factor conversion for 33 kV lines | D118: Factor | E118: 0
A119: ED_OPD3435_00010 | B119: DOPSD0310 | C119: Average power factor conversion for 44 kV lines | D119: Factor | E119: 0
A120: ED_OPD3435_00011 | B120: DOPSD0311 | C120: Average power factor conversion for 66 kV lines | D120: Factor | E120: 0.973
A121: ED_OPD3435_00012 | B121: DOPSD0312 | C121: Average power factor conversion for 110 kV lines | D121: Factor | E121: 0
A122: ED_OPD3435_00013 | B122: DOPSD0313 | C122: Average power factor conversion for 132 kV lines | D122: Factor | E122: 0.98
A123: ED_OPD3435_00013 | B123: DOPSD0314 | C123: Average power factor conversion for 220 kV lines | D123: Factor | E123: 0
C125: Table 3.4.3.6 Demand supplied (for customers charged on this basis) – MW measure
A126: ED_OPD3436_00001 | B126: DOPSD0401 | C126: Summated Chargeable Contracted Maximum Demand | D126: MW | E126: 0
A127: ED_OPD3436_00002 | B127: DOPSD0402 | C127: Summated Chargeable Measured Maximum Demand | D127: MW | E127: 0
C128: Table 3.4.3.7 Demand supplied (for customers charged on this basis) – MVA measure
A129: ED_OPD3437_00001 | B129: DOPSD0403 | C129: Summated Chargeable Contracted Maximum Demand | D129: MVA | E129: 0
A130: ED_OPD3437_00002 | B130: DOPSD0404 | C130: Summated Chargeable Measured Maximum Demand | D130: MVA | E130: 397327.875

Sheet 3.5 Physical assets
C1: REGULATORY REPORTING STATEMENT
C2: =dms_TradingName -> ActewAGL Distribution
C3: =CONCATENATE("Benchmarking RIN response ",CRY) -> Benchmarking RIN response 2014-15
C4: 3.5 PHYSICAL ASSETS
E8: Actual
E9: =CRY -> 2014-15
D10: Unit
C11: TABLE 3.5.1 - NETWORK CAPACITIES
C12: Circuit length
C13: Table 3.5.1.1 Overhead network length of circuit at each voltage
A14: ED_PHA3511_00001 | B14: DPA0101 | C14: Overhead low voltage distribution | D14: km | E14: 1169.163
A15: ED_PHA3511_00002 | B15: DPA0102 | C15: Overhead 2.2 kV | D15: km | E15: 0
A16: ED_PHA3511_00003 | B16: DPA0103 | C16: Overhead 6.6kv | D16: km | E16: 0
A17: ED_PHA3511_00004 | B17: DPA0104 | C17: Overhead 7.6 kV | D17: km | E17: 0
A18: ED_PHA3511_00005 | B18: DPA0105 | C18: Overhead 11 kV | D18: km | E18: 968.439
A19: ED_PHA3511_00006 | B19: DPA0106 | C19: Overhead SWER | D19: km | E19: 0
A20: ED_PHA3511_00007 | B20: DPA0107 | C20: Overhead 22 kV | D20: km | E20: 33.81
A21: ED_PHA3511_00008 | B21: DPA0108 | C21: Overhead 33 kV | D21: km | E21: 0
A22: ED_PHA3511_00009 | B22: DPA0109 | C22: Overhead 44 kV | D22: km | E22: 0
A23: ED_PHA3511_00010 | B23: DPA0110 | C23: Overhead 66 kV | D23: km | E23: 7.156
A24: ED_PHA3511_00011 | B24: DPA0111 | C24: Overhead 110kV | D24: km | E24: 0
A25: ED_PHA3511_00012 | B25: DPA0112 | C25: Overhead 132 kV | D25: km | E25: 189.019
A26: ED_PHA3511_00013 | B26: DPA0113 | C26: Overhead 220kV | D26: km | E26: 0
A27: ED_PHA3511_00014 | B27: DPA0114 | C27: Other | D27: km | E27: 0
B28: DPA01 | C28: Total overhead circuit km | D28: km | E28: 2367.587
C30: Table 3.5.1.2 Underground network circuit length at each voltage
A31: ED_PHA3512_00001 | B31: DPA0201 | C31: Underground low voltage distribution | D31: km | E31: 1360.917
A32: ED_PHA3512_00002 | B32: DPA0202 | C32: Underground 5 kV | D32: km | E32: 0
A33: ED_PHA3512_00003 | B33: DPA0203 | C33: Underground 6.6 Kv | D33: km | E33: 0
A34: ED_PHA3512_00004 | B34: DPA0204 | C34: Underground 7.6 kV | D34: km | E34: 0
A35: ED_PHA3512_00005 | B35: DPA0205 | C35: Underground 11 kV | D35: km | E35: 1528.919
A36: ED_PHA3512_00006 | B36: DPA0206 | C36: Underground SWER | D36: km | E36: 0
A37: ED_PHA3512_00007 | B37: DPA0207 | C37: Underground 22 kV | D37: km | E37: 2.462
A38: ED_PHA3512_00008 | B38: DPA0208 | C38: Underground 33 kV | D38: km | E38: 0
A39: ED_PHA3512_00010 | B39: DPA0209 | C39: Underground 66 kV | D39: km | E39: 0
A40: ED_PHA3512_00009 | B40: DPA0210 | C40: Underground 110 kV | D40: km | E40: 0
A41: ED_PHA3512_00010 | B41: DPA0211 | C41: Underground 132 kV | D41: km | E41: 6.021
A42: ED_PHA3512_00011 | B42: DPA0212 | C42: Other | D42: km | E42: 0.1
B43: DPA02 | C43: Total underground circuit km | D43: km | E43: 2898.419
C45: Circuit Capacity MVA
C46: Table 3.5.1.3 Estimated overhead network weighted average MVA capacity by voltage class
A47: ED_PHA3513_00001 | B47: DPA0301 | C47: Overhead low voltage distribution | D47: MVA | E47: 0.26
A48: ED_PHA3513_00002 | B48: DPA0302 | C48: Overhead 6.6 kV | D48: MVA | E48: 0
A49: ED_PHA3513_00003 | B49: DPA0303 | C49: Overhead 7.6 kV | D49: MVA | E49: 0
A50: ED_PHA3513_00004 | B50: DPA0304 | C50: Overhead 11 kV | D50: MVA | E50: 5.94
A51: ED_PHA3513_00005 | B51: DPA0305 | C51: Overhead SWER | D51: MVA | E51: 0
A52: ED_PHA3513_00006 | B52: DPA0306 | C52: Overhead 22 kV | D52: MVA | E52: 13.655
A53: ED_PHA3513_00007 | B53: DPA0307 | C53: Overhead 33 kV | D53: MVA | E53: 0
A54: ED_PHA3513_00008 | B54: DPA0308 | C54: Overhead 44 kV | D54: MVA | E54: 0
A55: ED_PHA3513_00009 | B55: DPA0309 | C55: Overhead 66 kV | D55: MVA | E55: 57.2
A56: ED_PHA3513_00010 | B56: DPA0310 | C56: Overhead 110 kV | D56: MVA | E56: 0
A57: ED_PHA3513_00011 | B57: DPA0311 | C57: Overhead 132 kV | D57: MVA | E57: 347.69
A58: ED_PHA3513_00012 | B58: DPA0312 | C58: Overhead 220 kV | D58: MVA | E58: 0
A59: ED_PHA3513_00013 | B59: DPA0313 | C59: Other | D59: MVA | E59: 0
C61: Table 3.5.1.4 Estimated underground network weighted average MVA capacity by voltage class
A62: ED_PHA3514_00001 | B62: DPA0401 | C62: Underground low voltage distribution | D62: MVA | E62: 0.257
A63: ED_PHA3514_00002 | B63: DPA0402 | C63: Underground 5 kV | D63: MVA | E63: 0
A64: ED_PHA3514_00003 | B64: DPA0403 | C64: Underground 6.6 kV | D64: MVA | E64: 0
A65: ED_PHA3514_00004 | B65: DPA0404 | C65: Underground 7.6 kV | D65: MVA | E65: 0
A66: ED_PHA3514_00005 | B66: DPA0405 | C66: Underground 11 kV | D66: MVA | E66: 6.803
A67: ED_PHA3514_00006 | B67: DPA0406 | C67: Underground SWER | D67: MVA | E67: 0
A68: ED_PHA3514_00007 | B68: DPA0407 | C68: Underground 12.7 kV | D68: MVA | E68: 0
A69: ED_PHA3514_00008 | B69: DPA0408 | C69: Underground 22 kV | D69: MVA | E69: 8.646
A70: ED_PHA3514_00009 | B70: DPA0409 | C70: Underground 33 kV | D70: MVA | E70: 0
A71: ED_PHA3514_00010 | B71: DPA0410 | C71: Underground 66 kV | D71: MVA | E71: 0
A72: ED_PHA3514_00010 | B72: DPA0411 | C72: Underground 110 kV | D72: MVA | E72: 0
A73: ED_PHA3514_00011 | B73: DPA0412 | C73: Underground 132 kV | D73: MVA | E73: 270
A74: ED_PHA3514_00012 | B74: DPA0413 | C74: Other | D74: MVA | E74: 0
C76: TABLE 3.5.2 - TRANSFORMER CAPACITIES
C77: Table 3.5.2.1 Distribution transformer total installed capacity
A78: ED_PHA3521_00001 | B78: DPA0501 | C78: Distribution transformer capacity owned by utility | D78: MVA | E78: 2151.015
A79: ED_PHA3521_00002 | B79: DPA0502 | C79: Distribution transformer capacity owned by High Voltage Customers | D79: MVA | E79: 28.7
A80: ED_PHA3521_00003 | B80: DPA0503 | C80: Cold spare capacity included in DPA0501 | D80: MVA | E80: 27.425
C82: Table 3.5.2.2 Zone substation transformer capacity
A83: ED_PHA3522_00001 | B83: DPA0601 | C83: Total installed capacity for first step transformation where there are two steps to reach distribution voltage | D83: MVA | E83: 0
A84: ED_PHA3522_00002 | B84: DPA0602 | C84: Total installed capacity for second step transformation where there are two steps to reach distribution voltage | D84: MVA | E84: 0
A85: ED_PHA3522_00003 | B85: DPA0603 | C85: Total zone substation transformer capacity where there is only a single step transformation to reach distribution voltage | D85: MVA | E85: 1478
A86: ED_PHA3522_00004 | B86: DPA0604 | C86: Total zone substation transformer capacity | D86: MVA | E86: 1478
A87: ED_PHA3522_00005 | B87: DPA0605 | C87: Cold spare capacity of zone substation transformers included in DPA0604 | D87: MVA | E87: 0
E88: 0
C89: Table 3.5.2.3 Distribution - other transformer capacity
A90: ED_PHA3523_00001 | C90: Distribution other - transformer capacity owned by utility | D90: MVA | E90: 0
C92: TABLE 3.5.3 - PUBLIC LIGHTING
A93: ED_PHA353_00001 | B93: DPA0701 | C93: Public lighting luminaires | D93: Number | E93: 0
A94: ED_PHA353_00002 | B94: DPA0702 | C94: Public lighting poles | D94: Number | E94: 0
A95: ED_PHA353_00003 | B95: DPA0703 | C95: Public lighting columns | D95: Number | E95: 0

Sheet 3.6 Quality of service
C1: REGULATORY REPORTING STATEMENT
C2: =dms_TradingName -> ActewAGL Distribution
C3: =CONCATENATE("Benchmarking RIN response ",CRY) -> Benchmarking RIN response 2014-15
C4: 3.6 QUALITY OF SERVICE DATA
E8: Actual
E9: =CRY -> 2014-15
D10: Unit
C11: TABLE 3.6.1 - RELIABILITY
C12: Table 3.6.1.1 Inclusive of MEDs
A13: ED_QOS3611_00001 | B13: DQS0101 | C13: Whole of network unplanned SAIDI | D13: minutes/customer | E13: 32.87
A14: ED_QOS3611_00002 | B14: DQS0102 | C14: Whole of network unplanned SAIDI excluding excluded outages | D14: minutes/customer | E14: 32.87
A15: ED_QOS3611_00003 | B15: DQS0103 | C15: Whole of network unplanned SAIFI | D15: interruptions/customer | E15: 0.605
A16: ED_QOS3611_00004 | B16: DQS0104 | C16: Whole of network unplanned SAIFI excluding excluded outages | D16: interruptions/customer | E16: 0.605
C17: Table 3.6.1.2 Exclusive of MEDs
A18: ED_QOS3612_00001 | B18: DQS0105 | C18: Whole of network unplanned SAIDI | D18: minutes/customer | E18: 32.87
A19: ED_QOS3612_00002 | B19: DQS0106 | C19: Whole of network unplanned SAIDI excluding excluded outages | D19: minutes/customer | E19: 32.87
A20: ED_QOS3612_00003 | B20: DQS0107 | C20: Whole of network unplanned SAIFI | D20: interruptions/customer | E20: 0.605
A21: ED_QOS3612_00004 | B21: DQS0108 | C21: Whole of network unplanned SAIFI excluding excluded outages | D21: interruptions/customer | E21: 0.605
C23: TABLE 3.6.2 - ENERGY NOT SUPPLIED
A24: ED_QOS362_00001 | B24: DQS0201 | C24: Energy Not Supplied (planned) | D24: GWh | E24: 0.27
A25: ED_QOS362_00002 | B25: DQS0202 | C25: Energy Not Supplied (unplanned) | D25: GWh | E25: 0.179
B26: DQS02 | C26: Total | D26: GWh | E26: 0.449
C28: TABLE 3.6.3 - SYSTEM LOSSES
A29: ED_QOS363_00001 | B29: DQS03 | C29: System losses | D29: % | E29: 0.0442
C31: TABLE 3.6.4 - CAPACITY UTILISATION
A32: ED_QOS364_00001 | B32: DQS04 | C32: Overall utilisation | D32: % | E32: 0.4427713126

Sheet 3.7 Operating environment
C1: REGULATORY REPORTING STATEMENT
C2: =dms_TradingName -> ActewAGL Distribution
C3: =CONCATENATE("Benchmarking RIN response ",CRY) -> Benchmarking RIN response 2014-15
C4: 3.7 OPERATING ENVIRONMENT FACTORS
E8: Actual
E9: =CRY -> 2014-15
C11: TABLE 3.7.1 - DENSITY FACTORS
A12: ED_OEF371_00001 | B12: DOEF0101 | C12: Customer density | D12: Customer / km | E12: 78.8057242
A13: ED_OEF371_00002 | B13: DOEF0102 | C13: Energy density | D13: MWh/customer | E13: 15.71629816
A14: ED_OEF371_00003 | B14: DOEF0103 | C14: Demand density | D14: kVA / customer | E14: 3.601113765
C16: TABLE 3.7.2 - TERRAIN FACTORS
A17: ED_OEF372_00001 | B17: DOEF0201 | C17: Rural proportion | D17: % | E17: 0.3559
A18: ED_OEF372_00002 | B18: DOEF0202 | C18: Urban and CBD vegetation maintenance spans | D18: Number of spans | E18: 5415
A19: ED_OEF372_00003 | B19: DOEF0203 | C19: Rural vegetation maintenance spans | D19: Number of spans | E19: 1082
A20: ED_OEF372_00004 | B20: DOEF0204 | C20: Total vegetation maintenance spans | D20: Number of spans | E20: 6497
A21: ED_OEF372_00005 | B21: DOEF0205 | C21: Total number of spans | D21: Number of spans | E21: 50703
A22: ED_OEF372_00006 | B22: DOEF0206 | C22: Average urban and CBD vegetation maintenance span cycle | D22: Years | E22: 3
A23: ED_OEF372_00007 | B23: DOEF0207 | C23: Average rural vegetation maintenance span cycle | D23: Years | E23: 1
A24: ED_OEF372_00008 | B24: DOEF0208 | C24: Average number of trees per urban and CBD vegetation maintenance span | D24: Trees | E24: 1.34
A25: ED_OEF372_00009 | B25: DOEF0209 | C25: Average number of trees per rural vegetation maintenance span | D25: Trees | E25: 1.989
A26: ED_OEF372_00010 | B26: DOEF0210 | C26: Average number of defects per urban and CBD vegetation maintenance span | D26: Defects | E26: 1.34
A27: ED_OEF372_00011 | B27: DOEF0211 | C27: Average number of defects per rural vegetation maintenance span | D27: Defects | E27: 1.989
A28: ED_OEF372_00012 | B28: DOEF0212 | C28: Tropical proportion | D28: Spans | E28: 0
A29: ED_OEF372_00013 | B29: DOEF0213 | C29: Standard vehicle access | D29: km | E29: 259
A30: ED_OEF372_00014 | B30: DOEF0214 | C30: Bushfire risk | D30: Spans | E30: 6793
C32: TABLE 3.7.3 - SERVICE AREA FACTORS
A33: ED_OEF373_00001 | B33: DOEF0301 | C33: Route Line length | D33: km | E33: 2306

Sheet Unlocked worksheet
B1: Supporting Calculations
B3: Table 3.6.2 Energy Not Supplied calculation
B4: Year | C4: 2014-15
B5: Minutes per year | C5: =(365*24*60) -> 525600
B6: Network Customers (Average Customer Number) | C6: 181726
B7: System Throughput GWh | C7: 2856 | D7: Total Electricity Network Sales
B8: Average Energy use per minute (GWh) | C8: =C7/C5 -> 0.005433789954
B9: Planned outage Minutes | C9: 49.68652807 | D9: Planned SAIDI
B10: Energy Not Supplied (planned) GWh | C10: =C8*C9 -> 0.2699861571
B11: Unplanned outage Minutes | C11: 32.86959241 | D11: Unplanned SAIDI
B12: Energy Not Supplied (unplanned) GWh | C12: =(C8*C11) -> 0.178606461
B13: Total Energy Not Supplied | C13: =SUM(C10+C12) -> 0.4485926181
B16: TABLE 3.6.3 - SYSTEM LOSSES
B17: System losses (%) | D17: =C26/C22 -> 0.04418381673
B19: Energy IN
B20: Table 3.4.1.2 Energy - received from TNSP and other DNSPs by time of receipt | C20: ='[1]3.4 Operational data'!E24+'[1]3.4 Operational data'!E25+'[1]3.4 Operational data'!E26+'[1]3.4 Operational data'!E27 -> 2874.534 | D20: GWh
B21: Table 3.4.1.3 Energy - received into DNSP system from embedded generation by time of receipt | C21: ='[1]3.4 Operational data'!E30+'[1]3.4 Operational data'!E31+'[1]3.4 Operational data'!E32+'[1]3.4 Operational data'!E33+'[1]3.4 Operational data'!E34+'[1]3.4 Operational data'!E35+'[1]3.4 Operational data'!E36+'[1]3.4 Operational data'!E37 -> 113.551 | D21: GWh
C22: =C20+C21 -> 2988.085 | D22: Gwh
B23: Energy OUT
B24: Table 3.4.1.1 Energy grouping - delivery by chargeable quantity | C24: ='[1]3.4 Operational data'!E12 -> 2856.06 | D24: GWh
C26: =C22-C24 -> 132.025 | D26: GWh
B27: TABLE 3.7.1 - DENSITY FACTORS
B28: Customers | C28: ='[1]3.4 Operational data'!E61 -> 181726
B29: Route line length | C29: ='[1]3.7 Operating environment'!E33 -> 2306
B30: MVA | C30: ='[1]3.4 Operational data'!E94 -> 654.416
B31: kVA | C31: =C30*1000 -> 654416
B32: GWh | C32: ='[1]3.4 Operational data'!E12 -> 2856.06
B33: MWh | C33: =C32*1000 -> 2856060
